Cogmind - Beta 9.6 @@@ ROGUE MODE // 2020.05.01 @ 19:11:31 Player: Trione Result: Destroyed by G-73 Enforcer with Phase Gun Performance ------------- Evolutions (9) 4500 Regions Visited (42) 8400 Robots Destroyed (775) 3875 Value Destroyed (39361) 39361 Prototype IDs (234) 4680 Alien Tech Used (20) 4000 Bonus (29336) 29336 TOTAL SCORE: 94152 Bonus ------- Triggered High Security 1500 High Alert Combat Kills 13050 Follower Combat Kills 3031 Entered Garrisons 800 Used RIF Installer 2000 Network Hubs Disabled 400 Met Data Miner 300 Used Data Conduit 3000 Met Zhirov 300 Built Enhanced Grunts 300 A7 Reached Mainframe 300 Met R17 at Cetus 500 Scanned by Researcher 1000 Pursued by Intercept 4500 Met MAIN.C 5000 Destroyed MAIN.C Shell 5000 Friendly Fire -11645 Cogmind --------- Core Integrity 0/1600 Matter 271/425 Energy 100/100 System Corruption 0% Temperature Cool (0) Movement Core (50) Location -1/Command Parts ------- > --- POWER (2) -------- (None) > --- PROPULSION (4) --- (None) > --- UTILITY (16) ----- Experimental Signal Interpreter Advanced Armor Integrity Analyzer > --- WEAPON (4) ------- (None) > --- INVENTORY (4) ---- Quantum Reactor Cooled Antigrav System Improved Force Field Peak State ------------ > --- POWER ------------ Quantum Reactor Quantum Reactor > --- PROPULSION ------- Cooled Antigrav System Cooled Antigrav System Cooled Antigrav System Cooled Antigrav System > --- UTILITY ---------- High-capacity Storage Unit High-capacity Storage Unit High-capacity Storage Unit Experimental Energy Well YI-UF0's Bottomless Matter Pit Quantum Shading Machine Quantum Shading Machine Quantum Shading Machine Experimental Signal Interpreter Experimental Targeting Computer Quantum Capacitor Centrium Medium Armor Plating Centrium Medium Armor Plating Experimental Force Field Deep Network Scanner > --- WEAPON ----------- Sigix Quantum Sheargun Sigix Quantum Sheargun Sigix Broadsword > --- INVENTORY -------- Reinforced Quantum Reactor Advanced Heavy Siege Treads Cooled Antigrav System Cooled Antigrav System Experimental Energy Well Quantum Shading Machine Experimental Target Analyzer Advanced Armor Integrity Analyzer EM Dispersion Field Transdimensional Reconstructor EMDS EMDS Linked Autogun Linked Autogun Improved Proton Missile Launcher Hellfire Missile Launcher Point Singularity Launcher Core Stripper [Rating: 235] Favorites ----------- Power Quantum Reactor Engine Angular Momentum Engine Power Core Nuclear Core Reactor Quantum Reactor Propulsion Centrium Wheel Treads Light Treads Wheel Centrium Wheel Hover Unit Cooled Antigrav System Utility High-capacity Storage Unit Device Quantum Shading Machine Storage High-capacity Storage Unit Processor Experimental Signal Interpreter Hackware System Mapper Protection Centrium Medium Armor Plating Artifact Phase Armor Weapon Great Axe Energy Gun High-powered Shock Rifle Energy Cannon Advanced Plasma Cannon Ballistic Gun Gauss Rifle Ballistic Cannon Light Cannon Launcher Rocket Launcher Special Weapon Experimental Remote Datajack Impact Weapon Core Stripper Slashing Weapon Great Axe Special Melee Weapon Improved Datajack Build | -11 -10 -10 -9 -9 -9 -8 -8 -8 -8 -8 -7 -7 -7 -7 -6 -6 -6 -6 -6 -6 -5 -5 -5 -5 -5 -5 -5 -5 -4 -4 -4 -4 -4 -4 -3 -3 -3 -3 -2 -2 -1 -1 ------- Run | Scr Mat Min Mat Min Exi Min Mat Gar Mat Gar Fac Gar Fac Gar Fac Was Fac Low Low Dat Pro Fac Was Fac Ext Cet Arc Hub Fac Was Fac Upp Upp Zhi Pro Res Qua Sec Res Tes Acc Com Slots Evolved 18 | . . . 2 . . . 2 . . . 2 . . . 2 . . . . . . 2 . . . . . . 2 . . . . . . 2 . . 2 . 2 . Power 1 | . . . . . . . . . . . 1 . . . . . . . . . . . . . . . . . . . . . . . . . . . . . . . Propulsion 2 | . . . . . . . . . . . . . . . . . . . . . . . . . . . . . . . . . . . . . . . 1 . 1 . Utility 13 | . . . 2 . . . 2 . . . 1 . . . 2 . . . . . . 2 . . . . . . 2 . . . . . . 2 . . . . . . Weapon 2 | . . . . . . . . . . . . . . . . . . . . . . . . . . . . . . . . . . . . . . . 1 . 1 . Parts Attached 1624 | 6 11 14 66 7 2 4 62 16 1 23 88 29 18 19 64 18 32 21 14 26 31 87 6 103 65 20 9 35 21 9 69 13 6 6 15 120 124 192 29 54 46 23 Power 61 | 1 1 . 2 1 . . 2 . . 1 6 1 3 1 3 2 . . . 3 1 1 1 1 3 2 . 1 . . . . . . . 3 4 9 5 . 1 2 Engine 17 | 1 1 . 1 . . . 2 . . . 6 1 1 . 3 1 . . . . . . . . . . . . . . . . . . . . . . . . . . Core 8 | . . . 1 1 . . . . . 1 . . 2 1 . . . . . . . . . . 2 . . . . . . . . . . . . . . . . . Reactor 36 | . . . . . . . . . . . . . . . . 1 . . . 3 1 1 1 1 1 2 . 1 . . . . . . . 3 4 9 5 . 1 2 Propulsion 208 | 2 5 5 33 1 . . 18 3 . 3 3 1 . . 5 . . 1 2 4 3 10 . 12 6 6 . 4 1 . 3 1 2 1 5 14 13 20 3 8 8 2 Treads 65 | . 2 2 15 . . . 6 1 . . . . . . . . . 1 . 2 . 3 . 4 2 2 . 1 . . 1 1 . 1 1 5 3 7 . 2 1 2 Leg . | . . . . . . . . . . . . . . . . . . . . . . . . . . . . . . . . . . . . . . . . . . . Wheel 125 | 2 3 3 18 1 . . 12 2 . 3 3 1 . . 5 . . . 2 2 3 7 . 8 4 4 . 3 1 . 2 . 2 . 4 9 10 11 . . . . Hover 18 | . . . . . . . . . . . . . . . . . . . . . . . . . . . . . . . . . . . . . . 2 3 6 7 . Flight . | . . . . . . . . . . . . . . . . . . . . . . . . . . . . . . . . . . . . . . . . . . . Utility 733 | 1 2 . 9 1 . . 15 6 1 7 32 6 6 4 19 10 25 13 9 14 17 44 . 69 30 10 2 17 9 7 40 3 4 3 7 61 64 97 14 26 24 5 Device 410 | . . . 1 . . . 2 2 . 2 9 2 . . 10 4 14 9 8 2 12 29 . 44 16 6 2 12 4 5 28 1 3 2 6 42 37 62 9 10 13 2 Storage 95 | 1 2 . 4 1 . . 1 1 1 1 5 1 . . . 1 2 . . 5 1 6 . 14 3 1 . . . 1 3 . . . . 5 11 12 . 6 4 2 Processor 8 | . . . . . . . 1 . . . . . . . . . . . . . 1 . . . . . . . 1 1 . . . . . . . 1 . . 2 1 Hackware 20 | . . . . . . . . . . 2 3 . 2 2 2 2 1 . . . . 1 . 1 . . . . . . 1 . . . . 2 . 1 . . . . Protection 197 | . . . 4 . . . 11 3 . 2 15 3 4 2 7 3 8 4 1 7 3 8 . 10 11 3 . 5 4 . 8 2 1 1 1 12 13 21 5 10 5 . Artifact 3 | . . . . . . . . . . . . . . . . . . . . . . . . . . . . . . . . . . . . . 3 . . . . . Weapon 622 | 2 3 9 22 4 2 4 27 7 . 12 47 21 9 14 37 6 7 7 3 5 10 32 5 21 26 2 7 13 11 2 26 9 . 2 3 42 43 66 7 20 13 14 Energy Gun 77 | . . 2 5 1 . . 2 1 . 1 8 8 . 1 . . . . . . . 11 3 5 2 . 2 1 . . . 3 . . . . 4 1 4 7 2 3 Energy Cannon 173 | . . . 4 . 1 1 10 1 . 3 9 3 2 . 6 4 . 2 1 2 2 1 . 5 8 1 2 3 7 2 11 3 . 1 2 24 14 24 2 6 4 2 Ballistic Gun 101 | 2 3 6 7 1 . . 9 2 . 1 4 1 1 4 6 . 2 . . . 1 5 . 2 1 . 1 4 3 . 7 . . . . 9 7 7 . 1 2 2 Ballistic Cannon 20 | . . 1 . . . 2 . . . . 4 1 . . 5 . 1 . . . 1 1 . . . . . . . . . . . . . . 1 3 . . . . Launcher 55 | . . . 4 1 . 1 5 2 . 5 2 4 1 3 1 . 1 1 1 2 3 2 . . . 1 . . . . 1 . . . . 1 . 5 1 1 1 5 Special Weapon 48 | . . . . . . . . . . 1 7 . 3 4 8 1 . 1 . . . 3 . 3 6 . 1 1 1 . . 2 . 1 . 1 2 2 . . . . Impact Weapon 15 | . . . . . . . 1 . . . . . . . . . . . . . . . . . . . . . . . . . . . . . 4 8 . 1 . 1 Slashing Weapon 123 | . . . 2 1 1 . . . . . 13 3 2 2 11 1 3 3 1 1 3 6 2 5 9 . . 3 . . 7 1 . . 1 7 10 16 . 4 4 1 Piercing Weapon . | . . . . . . . . . . . . . . . . . . . . . . . . . . . . . . . . . . . . . . . . . . . Special Melee Weapon 10 | . . . . . . . . 1 . 1 . 1 . . . . . . . . . 3 . 1 . . 1 1 . . . . . . . . 1 . . . . . Unidentified Prototypes 34 | . . . 4 . . . 2 . . . 1 . . . 3 . . . . . . . . . . . . . . . 1 . 1 1 . 2 8 7 . 4 . . Parts Lost 158 | . . 1 4 1 . . 17 1 . 2 9 6 . 3 6 . . . . . 5 4 . 2 1 . . . . . . . . . . 6 8 30 2 11 9 30 Power 22 | . . . . . . . 2 . . 1 2 . . 1 1 . . . . . . 1 . 1 1 . . . . . . . . . . 1 1 7 . . 1 2 Propulsion 20 | . . 1 . . . . 5 . . . 2 1 . . . . . . . . . 1 . . . . . . . . . . . . . . 1 2 . . 2 5 Utility 80 | . . . 1 . . . 5 1 . 1 4 3 . 1 4 . . . . . 3 1 . 1 . . . . . . . . . . . 5 3 19 1 10 4 13 Weapon 36 | . . . 3 1 . . 5 . . . 1 2 . 1 1 . . . . . 2 1 . . . . . . . . . . . . . . 3 2 1 1 2 10 Highest Loss Streak 28 | . . 1 1 1 . . 7 1 . 1 8 5 . 3 2 . . . . . 5 1 . 1 1 . . . . . . . . . . 2 2 7 2 9 5 28 Average Slot Usage (%) 94 | . 97 99 98 99 100 100 98 99 100 100 97 92 91 92 94 99 99 99 100 93 94 92 87 91 94 92 93 89 98 93 97 99 99 99 99 89 91 91 95 90 87 79 Engine 3 | . 14 14 5 . . . 7 9 9 2 12 15 7 7 11 7 6 6 6 4 . . . . . . . . . . . . . . . . . . . . . . Core 1 | . . . 5 11 11 11 1 . . 6 1 . 6 7 1 . . . . . . . . . 3 3 . . . . . . . . . . . . . . . . Reactor 5 | . . . . . . . . . . . . . . . . 4 6 6 6 7 13 10 11 9 6 6 11 11 10 10 10 10 10 10 10 8 8 8 8 8 7 6 Wheel 10 | . 27 25 19 22 22 22 7 10 18 18 14 8 7 7 7 13 13 12 13 11 13 8 11 8 9 7 11 9 10 10 9 9 10 9 9 8 8 5 . . . . Device 11 | . . . . . . . 5 4 9 5 6 9 4 . 16 4 11 12 12 12 8 15 17 15 12 8 11 7 20 15 14 20 20 19 19 19 12 16 23 25 19 17 Storage 31 | . 25 28 32 33 33 33 29 31 36 36 30 30 30 30 26 29 33 33 33 31 33 33 29 34 36 36 35 35 31 35 35 36 35 35 35 32 32 29 18 17 18 17 Processor 2 | . . . . . . . . . . . . . . . . . . . . . 3 2 . . . . . . 4 9 5 5 5 5 5 4 4 6 8 8 9 16 Hackware 3 | . . . . . . . . . . . 2 . 5 14 3 6 7 6 6 6 1 2 . 3 5 5 5 5 5 5 6 5 5 5 5 1 9 9 8 5 1 . Protection 7 | . . . 10 11 11 11 17 17 9 11 12 12 12 7 12 17 6 6 6 3 5 2 5 3 4 5 5 5 4 . 2 . 4 5 4 5 4 5 6 3 5 2 Energy Gun 1 | . . 3 4 . . . . 4 9 10 3 8 2 . . . . . . . . 3 10 2 . . 4 2 . . . 2 5 5 . . . . 1 3 4 . Energy Cannon 3 | . . . 7 . . 11 5 4 . 4 1 . 2 . 1 5 5 3 6 9 2 . . 3 3 4 . 1 7 . 5 1 5 . 4 2 1 2 3 2 . . Ballistic Gun 2 | . 28 23 4 10 . . 7 7 . . 1 . 3 6 3 . . 2 . . 4 1 . . . . 1 3 . 5 1 1 . . . . . . . . . 1 Slashing Weapon 2 | . . . 1 10 20 . . . . . 4 1 4 3 4 3 5 3 5 2 4 4 . 1 2 5 . 1 . . 3 1 . . 3 2 1 2 2 1 2 2 Naked Turns . | . . . . . . . . . . . . . . . . . . . . . . . . . . . . . . . . . . . . . . . . . . . Heaviest Build 311 | 10 38 39 85 99 103 105 120 109 102 108 157 176 163 172 201 225 235 236 214 243 245 261 249 269 256 272 272 277 275 275 298 284 257 299 266 311 311 295 218 217 189 160 Greatest Support 210 | 32 32 32 40 32 26 26 42 42 24 24 33 28 28 28 44 44 44 70 44 70 44 70 44 70 70 80 52 80 68 68 52 80 52 80 100 116 80 135 130 130 210 160 Greatest Overweight (x) 16 | . 1 1 4 3 3 4 5 7 4 4 6 13 5 6 6 7 7 7 6 7 7 8 16 8 7 8 8 8 5 10 9 4 4 4 4 9 9 9 1 1 1 5 Average Overweight (x) 3 | . . 1 1 2 3 3 2 3 4 3 5 6 5 5 4 5 4 5 4 5 6 4 5 4 4 4 7 6 4 6 4 3 4 3 3 4 4 3 1 1 . . Largest Inventory Capacity 56 | 6 16 16 24 26 26 26 32 30 30 30 34 36 36 36 36 42 44 44 44 50 44 44 44 56 56 56 50 50 50 56 56 56 56 56 56 56 56 56 38 32 34 24 Average Capacity 41 | 5 12 16 22 24 26 26 26 27 30 30 32 35 36 36 36 39 43 44 44 39 44 44 44 48 50 50 50 50 50 54 55 56 56 56 56 55 55 49 36 29 26 23 Most Carried 56 | 6 14 16 24 25 25 26 28 30 30 30 34 36 36 36 36 42 44 43 43 47 44 44 44 54 51 52 50 50 50 56 56 56 56 56 56 56 56 56 38 32 27 24 Average Carried 40 | 2 11 15 22 24 25 25 23 26 30 29 32 34 35 34 34 38 43 42 42 38 39 38 43 46 49 49 49 49 49 54 54 55 55 55 55 51 54 47 35 29 22 21 Final Capacity 56 | 6 16 16 24 26 26 26 24 30 30 30 34 36 36 36 36 42 44 44 44 44 44 44 44 50 50 50 50 50 50 56 56 56 56 56 56 50 56 38 32 28 24 4 Final Carried 56 | 6 14 16 24 25 25 26 24 30 30 30 34 36 36 33 35 42 43 43 43 44 39 42 44 50 50 50 50 50 50 56 56 56 56 56 56 50 56 38 32 27 21 3 Class Distribution -------------------- 66% | Hauler-Mutant 18% | Bothacker-Mutant 3% | Mutant 3% | Commander-Mutant Dominant Class ---------------- Mutant | -10/Materials Mutant | -10/Mines Hauler-Mutant | -9/Materials Hauler-Mutant | -9/Mines Hauler-Mutant | -9/Exiles Hauler-Mutant | -8/Mines Hauler-Mutant | -8/Materials Hauler-Mutant | -8/Garrison Hauler-Mutant | -8/Materials Bothacker-Mutant | -8/Garrison Scavenger-Mutant | -7/Factory Bothacker-Mutant | -7/Garrison Bothacker-Mutant | -7/Factory Bothacker-Mutant | -7/Garrison Bothacker-Mutant | -6/Factory Bothacker-Mutant | -6/Waste Bothacker-Mutant | -6/Factory Bothacker-Mutant | -6/Lower Caves Bothacker-Mutant | -6/Lower Caves Hauler-Mutant | -6/Data Miner Hauler-Mutant | -5/Proximity Caves Hauler-Mutant | -5/Factory Hauler-Mutant | -5/Waste Hauler-Mutant | -5/Factory Hauler-Mutant | -5/Extension Commander-Mutant | -5/Cetus Commander-Mutant | -5/Archives Hauler-Mutant | -5/Hub_04(d) Hauler-Mutant | -4/Factory Hauler-Mutant | -4/Waste Hauler-Mutant | -4/Factory Hauler-Mutant | -4/Upper Caves Hauler-Mutant | -4/Upper Caves Hauler-Mutant | -4/Zhirov Hauler-Mutant | -3/Proximity Caves Hauler-Mutant | -3/Research Hauler-Mutant | -3/Quarantine Hauler-Mutant | -3/Section 7 Hacker-Mutant | -2/Research Hauler-Mutant | -2/Testing Hauler-Mutant | -1/Access Hauler-Mutant | -1/Command Resources | -11 -10 -10 -9 -9 -9 -8 -8 -8 -8 -8 -7 -7 -7 -7 -6 -6 -6 -6 -6 -6 -5 -5 -5 -5 -5 -5 -5 -5 -4 -4 -4 -4 -4 -4 -3 -3 -3 -3 -2 -2 -1 -1 ----------- Run | Scr Mat Min Mat Min Exi Min Mat Gar Mat Gar Fac Gar Fac Gar Fac Was Fac Low Low Dat Pro Fac Was Fac Ext Cet Arc Hub Fac Was Fac Upp Upp Zhi Pro Res Qua Sec Res Tes Acc Com Matter Collected 34354 | 236 349 288 1878 841 36 165 993 500 . 370 1113 506 146 343 1108 195 289 293 208 284 378 1255 158 1042 1229 212 147 491 214 817 603 539 104 58 250 2828 3295 5691 495 2013 1249 1145 Remotely 9600 | . . . . . . . . . . 67 255 . . . 408 . 103 38 112 21 161 539 . 426 260 . . 138 214 817 401 455 104 58 209 929 1227 1825 495 338 . . Salvage Created 45432 | 52 377 376 1747 338 . 173 1798 839 . 1163 1729 1133 296 289 1083 1612 338 631 153 461 240 1468 665 1098 1229 315 499 1124 230 1512 850 513 . 374 225 5369 2372 6043 891 2432 2480 915 Parts 1696 | 2 32 23 112 6 . 12 98 40 . 35 81 38 25 32 36 48 15 20 4 25 14 60 21 69 52 15 12 53 4 38 36 10 . 2 2 189 78 165 33 43 101 15 Haulers Intercepted 22 | . . . 5 . . . 4 . . . 3 . 1 . 1 . . . . . . . . . . . . 1 . . . . . . . 2 . 3 . . 2 . Recyclers Shooed 29 | . 1 . 3 . . . 3 . . . 3 . 1 . 2 . . . . . . 6 . 4 . . . . . . 1 . . . . 1 . 1 1 2 . . Parts Field Recycled . | . . . . . . . . . . . . . . . . . . . . . . . . . . . . . . . . . . . . . . . . . . . Retrieved Matter . | . . . . . . . . . . . . . . . . . . . . . . . . . . . . . . . . . . . . . . . . . . . Parts Self-Destructed 21 | . . . . . . . . . . . . . . . . . . 8 4 . 8 . . . . . . . . . . 1 . . . . . . . . . . Prevented 16 | . . . . . . . . . . . . . . . . . . 3 . . 3 . . . . . . . . . . 6 . 2 2 . . . . . . . Kills | -11 -10 -10 -9 -9 -9 -8 -8 -8 -8 -8 -7 -7 -7 -7 -6 -6 -6 -6 -6 -6 -5 -5 -5 -5 -5 -5 -5 -5 -4 -4 -4 -4 -4 -4 -3 -3 -3 -3 -2 -2 -1 -1 ------- Run | Scr Mat Min Mat Min Exi Min Mat Gar Mat Gar Fac Gar Fac Gar Fac Was Fac Low Low Dat Pro Fac Was Fac Ext Cet Arc Hub Fac Was Fac Upp Upp Zhi Pro Res Qua Sec Res Tes Acc Com Combat Hostiles Destroyed 556 | . 13 10 29 4 . 8 33 16 . 9 27 16 6 15 9 . 6 5 4 4 8 22 . 12 15 3 3 6 1 6 10 1 . . 1 59 28 87 16 26 31 7 Melee 37 | . . . . . . . . . . . 10 . 2 1 1 . 1 . . . . 4 . 1 . . . . . . . . . . . 4 4 5 . . 2 2 Guns 102 | . 13 10 9 1 . . 9 7 . . 3 1 . 3 2 . 1 . . . . 3 . 1 . . . 3 . 6 4 . . . . 8 3 1 2 1 10 1 Cannons 136 | . . . 10 . . 4 14 1 . 1 9 3 2 . 6 . 1 2 1 . . 3 . 6 8 . . 3 . . 2 . . . . 21 7 20 2 6 4 . AOE 145 | . . . 10 3 . 4 10 7 . 8 4 12 2 11 . . 3 2 3 . 8 10 . . . . . . . . 2 . . . . . . 27 5 3 7 4 Classes Destroyed 27 | 1 4 . 5 1 . . 1 1 . . 1 . . . 1 2 . . 1 . . . . . 1 . . 1 . 1 . . . . . 1 3 1 . 1 . . Worker 38 | . 1 . 5 . . . 3 . . . 1 . . . 3 . . . . . . 3 . 4 . . . 5 . . . . . . . 3 2 3 . 1 4 . Builder 37 | . . . 2 . . . 5 . . . 1 . 1 . 1 . . . . . . . . 2 4 . . 3 . . . . . . . 9 2 4 1 2 . . Tunneler 2 | . . . 1 . . . . . . . . . . . . . . . . . . . . . . . . . . . . . . . . 1 . . . . . . Hauler 22 | . . . 5 . . . 4 . . . 3 . 1 . 1 . . . . . . . . . . . . 1 . . . . . . . 2 . 3 . . 2 . Recycler 39 | 1 . . 5 1 . . 2 . . . 4 . 1 . 3 . 1 . . . . 4 . 1 1 . . 1 1 . 2 . . . . 4 . 4 . 2 1 . Carrier 1 | . . . . . . . . . . . . . . . . . . . . . . . . . . . . . . . . . . . . . . . . 1 . . Mechanic 3 | . . . . . . . . . . . . . . . . . . . . . . . . . . . . . . . 1 . . . . 1 . 1 . . . . Operator 10 | . . . . . . . . . . . . . . . 1 . . 1 . . . . . . . . 5 . . . 1 . . . . . . 1 . 1 . . Watcher 26 | . 2 . 2 . . . 4 . . . 1 . . . . . . . . . . 1 . 2 2 . . 1 . . 2 . . . . 1 2 3 1 2 . . Swarmer 131 | . 9 6 7 3 . 5 11 7 . 6 8 . 2 11 . . 4 . 4 . 5 10 . 1 1 . . . . . 3 . . . . 4 . 14 5 . 5 . Saboteur 4 | . . . . . . . . . . . . . . . . . . . . . . . . . . . . . . . . . . . . 2 . . 1 1 . . Grunt 165 | . 4 4 12 . . 3 16 6 . 2 8 13 2 2 6 . . 3 . . 1 2 . . 1 . . 2 . . . . . . . 20 14 20 1 10 10 3 Brawler 12 | . . . 2 . . . 1 . . . 1 . . . . . . . . . . . . . . . . . . . . . . . . 2 1 3 . 1 1 . Duelist 18 | . . . . . . . . 2 . . 2 2 . . . . 1 . . . . . . . . . . . . . 2 . . . . 3 . . 3 1 1 1 Protector 4 | . . . . . . . . . . . . . . . . . . . . . . . . . . . . 1 . . . . . . . . . 1 . 1 1 . Researcher 8 | . . . . . . . . . . . . . . . . . . . . . . . . . . . . . . . . . . . . . 3 3 . 2 . . Sentry 57 | . . . 8 . . . 4 1 . 1 4 . . 2 1 . 1 . . . . 3 . 4 6 . 3 1 1 . . 1 . . 1 7 . 6 2 . . . Hunter 35 | . . . . . . . 1 . . . 1 . . . 1 . . . . . 2 1 . 1 4 . . . . . . . . . . 6 . 7 2 6 3 . Programmer 60 | . . . . . . . . . . . 4 1 2 . 1 . 1 . . . . 4 . 4 2 . . . . . 4 . . . . 13 6 5 2 3 6 2 Q-Series 2 | . . . . . . . . . . . . . . . . . . . . . . . . . . . . . . . . . . . . . 1 1 . . . . Behemoth 3 | . . . . . . . . . . . . . . . . . . . . . . . . . 1 . . . . . . . . . . 1 . 1 . . . . Compactor 6 | . . . . . . . . . . . . . . . . . . . . . . . . . . . . . . 6 . . . . . . . . . . . . Cetus Guard 3 | . . . . . . . . . . . . . . . . . . . . . . . . . . 3 . . . . . . . . . . . . . . . . S7 Guard 4 | . . . . . . . . . . . . . . . . . . . . . . . . . . . . . . . . . . . . . . 4 . . . . Enhanced Grunt 4 | . . . . . . . . . . . . . . . . . . . . 4 . . . . . . . . . . . . . . . . . . . . . . Lightning 3 | . . . . . . . . . . . . . . . . . . . . . . . . . . . . 3 . . . . . . . . . . . . . . Tracker 19 | . . . . . . . . . . . . . . . . . . . . . . 1 . 1 . . . . . . 1 . . . . 1 1 11 . 1 2 . Combat Programmer 22 | . . . . . . . . . . . . . . . . . . . . . . 1 . 1 . . . . . . . . . . . . 4 12 . 2 2 . Alpha 7 2 | . . . . . . . . . . . . . . . . . . . . . . . . . . . . . . . . . . . . . . 2 . . . . Fortress 1 | . . . . . . . . . . . . . . . . . . . . . . . . . . . . . . . . . . . . . 1 . . . . . Packrat 1 | . . . . . . . . . . . . . . . . . . . 1 . . . . . . . . . . . . . . . . . . . . . . . Samaritan 1 | . . . . . . . . . . . . . . . . . . . 1 . . . . . . . . . . . . . . . . . . . . . . . Assembled 1 | . . . . 1 . . . . . . . . . . . . . . . . . . . . . . . . . . . . . . . . . . . . . . Surgeon 1 | . . . . . . . . . . . . . . . . 1 . . . . . . . . . . . . . . . . . . . . . . . . . . Wasp 7 | . . . . . . . . . . . . . . . . 4 . . . . . . 3 . . . . . . . . . . . . . . . . . . . Thug 11 | . . . . . . . . . . . . . . . . 7 . 1 . . . . 2 . . . . 1 . . . . . . . . . . . . . . Savage 2 | . . . . . . . . . . . . . . . . 1 . 1 . . . . . . . . . . . . . . . . . . . . . . . . Martyr 4 | . . . . . . . . . . . . . . . . 3 . . . . . . 1 . . . . . . . . . . . . . . . . . . . Guerrilla 2 | . . . . . . . . . . . . . . . . . . . . . . . . . . . . 2 . . . . . . . . . . . . . . Best Kill Streak 22 | 1 5 3 5 4 . 4 10 7 . 3 5 9 4 10 3 . 4 3 4 4 5 6 . 5 6 2 3 7 1 4 5 1 . . 1 10 9 20 7 9 22 4 Combat Bots Only 12 | . 3 3 4 4 . 4 8 7 . 3 4 9 2 10 2 . 4 3 4 4 5 5 . 3 2 2 3 3 1 4 5 1 . . 1 12 6 9 6 7 11 4 Max Kills in Single Turn 7 | 1 1 2 3 3 . 3 2 3 . 3 3 3 3 5 1 1 4 1 3 2 4 3 1 1 2 1 1 7 1 1 2 1 . . 1 2 2 5 3 2 3 2 Gunslinging 1 | . . 1 . . . . . . . . . . . . . . . . . . . . . . . . . . . . . . . . . . . . . . . . Exploded 5 | . . . 2 3 . 3 2 3 . 3 2 3 1 5 . . 3 1 3 . 4 3 . . . . . . . . 2 . . . . . . 5 3 2 2 2 Melee 1 | . . . . . . . . . . . 1 . 1 1 1 . 1 . . . . 1 . 1 . . . . . . . . . . . 1 1 1 . . 1 1 Uniques/NPCs Destroyed 4 | . . 1 . . . . . . . . . . . . . . . . . 1 . . . . . 1 . . . . . . . . . . . . . . . 1 YI-UF0 (-10/Mines) Data Miner (-6/Data Miner) A7 (-5/Cetus) MAIN.C Shell (-1/Command) Combat | -11 -10 -10 -9 -9 -9 -8 -8 -8 -8 -8 -7 -7 -7 -7 -6 -6 -6 -6 -6 -6 -5 -5 -5 -5 -5 -5 -5 -5 -4 -4 -4 -4 -4 -4 -3 -3 -3 -3 -2 -2 -1 -1 -------- Run | Scr Mat Min Mat Min Exi Min Mat Gar Mat Gar Fac Gar Fac Gar Fac Was Fac Low Low Dat Pro Fac Was Fac Ext Cet Arc Hub Fac Was Fac Upp Upp Zhi Pro Res Qua Sec Res Tes Acc Com Damage Taken 43100 | . 350 538 762 158 . 41 2061 488 . 176 1892 1596 130 485 996 . 308 259 72 907 1065 1585 . 724 1310 44 25 477 45 . 1022 . . . 15 3018 4230 8994 272 1878 1674 5503 Core 4719 | . 122 81 86 32 . 8 217 66 . 32 168 317 . 81 93 . 65 53 15 . 98 80 . 24 77 . . 13 . . 44 . . . . 103 375 809 30 153 108 1369 Absorbed by Shields 13989 | . . . . . . . . . . . . . . . 40 . 81 68 . 116 197 1199 . 127 166 48 26 . . . 39 . . . . 1957 1540 5054 289 486 915 1641 Reduced by Siege Mode 639 | . . . . . . . . . . . . . . . . . . . . 18 . 43 . 12 38 . . 8 . . 19 . . . . 85 133 140 . . 14 129 Redirected to Core 117 | . . . . . . . . . . . . . . . . . . . . . . . . . . . . . . . . . . . . . 117 . . . . . Core Remaining (%) 59 | 100 . 18 . . . 68 . . . 42 . . . 19 . . . . . . 61 . . . . . . 80 . . . . . . 96 . . 19 . 87 . . Volleys Fired 2389 | 2 55 53 102 4 . 11 111 67 . 82 87 63 19 18 73 14 8 14 7 5 20 98 7 122 89 16 88 35 23 69 62 45 28 53 54 173 113 240 32 117 70 40 Largest 3 | 2 2 2 2 2 . 2 2 2 . 2 2 2 2 2 2 2 2 2 2 2 2 2 2 2 2 1 1 2 1 1 2 1 1 1 1 2 2 2 2 2 3 2 Hottest 270 | 40 40 40 136 79 . 133 133 123 . 123 138 160 108 60 150 150 76 150 155 150 150 125 125 178 128 81 81 98 98 30 133 98 98 65 98 211 211 214 200 200 270 60 Shots Fired 3068 | 4 110 93 192 5 . 20 175 97 . 95 122 92 21 28 112 20 10 22 11 10 29 144 13 143 92 16 88 51 23 69 72 45 28 53 54 184 138 268 41 118 98 62 Gun 1458 | 4 110 93 92 2 . . 66 77 . 71 50 61 2 22 60 . 7 1 . . 7 120 13 43 19 . 73 35 . 69 14 29 . 49 . 29 33 34 21 40 56 56 Cannon 1372 | . . . 91 . . 18 90 15 . 9 50 14 8 . 41 19 2 16 9 2 14 13 . 100 47 14 13 16 22 . 56 12 28 . 54 154 105 211 18 72 39 . Launcher 141 | . . . 9 3 . 2 19 5 . 4 4 17 2 3 . . 1 3 2 8 8 7 . . . 2 . . . . 2 . . . . 1 . 22 2 6 3 6 Special 97 | . . . . . . . . . . 11 18 . 9 3 11 1 . 2 . . . 4 . . 26 . 2 . 1 . . 4 . 4 . . . 1 . . . . Kinetic 987 | 4 110 80 94 1 . 6 66 70 . 3 27 16 2 21 80 . 9 2 . . 14 40 . 3 3 . . 33 . 69 14 . . . . 29 33 47 . 8 47 56 Thermal 501 | . . . 87 1 . 12 54 . . . 19 4 8 . . . . . 4 . . 5 . 33 4 . . 7 15 . 34 9 28 . 48 36 47 46 . . . . Explosive 107 | . . . 9 3 . 2 15 5 . 4 4 9 2 3 . . 1 . 2 . 2 7 . . . . . . . . 2 . . . . 1 . 19 2 6 3 6 Electromagnetic 1314 | . . 13 2 . . . 40 22 . 77 54 63 . 1 21 19 . 18 5 10 13 88 13 107 59 16 86 11 7 . 22 32 . 49 6 118 58 155 18 72 39 . Slashing 62 | . . . . . . . . . . . . . . . . . . . . . . . . . . . . . . . . . . . . . . . 21 32 9 . Robot Hit Streak 68 | 1 10 9 12 5 . 5 11 18 . 16 17 18 4 4 11 11 5 16 2 10 5 29 14 52 23 16 10 11 8 33 14 8 . 24 3 17 26 32 37 43 58 68 Robot Miss Streak 7 | 1 4 2 5 2 . 4 3 4 . 3 6 3 4 2 5 2 1 2 4 . 2 7 1 5 2 1 3 2 1 2 3 1 . 1 1 3 4 2 2 3 2 2 Penetration Max 2 | . . . . . . . 1 1 . . . . . . 1 . . . . . . 1 . 1 1 . . 1 . . 1 . . . . 2 1 2 1 1 1 . Secondary Targets 19 | . 1 2 . . . . 1 2 . . . . . 1 . . . . . . . 1 . 1 . . . 2 . . 1 . . . . 1 1 . 1 . 4 . Max Gunslinging Chain 1 | . 1 1 . . . . 1 1 . . . . . 1 . . . . . . . 1 . 1 . . . 1 . . 1 . . . . 1 1 . 1 . 1 . Capacitor 116 | . . . . . . . . . . . . . . . . . . . . . . . . . . . . . . . . . . . . . . . . 77 39 . Shots Hit Robots 2376 | 2 65 68 131 28 . 10 112 81 . 70 103 62 12 15 79 43 11 27 8 11 15 138 25 119 70 12 48 38 5 67 46 34 . 48 3 185 104 225 31 64 93 68 Core Hits 1317 | 2 24 24 86 19 . 10 83 30 . 28 50 52 9 20 31 22 8 17 11 12 15 63 7 44 18 6 16 40 3 24 21 12 . 30 3 81 41 143 17 29 74 92 Critical Hits 186 | . . . 4 . . . 4 2 . . 1 1 . . 2 . 2 . . . 1 1 1 1 8 . 1 8 . . 6 1 . . 2 36 15 42 5 11 14 17 Critical Kills 55 | . . . . . . . 4 2 . . . 1 . . 1 . 2 . . . . 1 . . 1 . . 4 . . 4 . . . 1 13 4 6 2 4 4 1 Critical Parts Destroyed 98 | . . . 4 . . . . . . . 1 . . . 1 . . . . . 1 . . 1 6 . . 3 . . 2 1 . . . 17 11 20 3 7 8 12 Melee Attacks 840 | . . . 24 29 . . 1 20 . 7 41 5 9 4 73 26 31 16 10 1 18 57 15 28 16 2 3 10 . . 20 8 . . 9 70 85 101 10 22 34 35 Kinetic 63 | . . . . . . . . . . . . . . . . . . . . . . . . . . . . . . . . . . . . . 15 41 . 3 . 4 Impact 1 | . . . . . . . 1 . . . . . . . . . . . . . . . . . . . . . . . . . . . . . . . . . . . Slashing 735 | . . . 24 29 . . . . . . 41 3 9 4 73 26 31 16 10 1 18 55 15 22 16 2 . 9 . . 20 8 . . 9 70 70 60 10 19 34 31 Piercing . | . . . . . . . . . . . . . . . . . . . . . . . . . . . . . . . . . . . . . . . . . . . Sneak Attacks 136 | . . . 2 5 . . . 20 . 7 7 2 . . 8 26 2 . 4 1 . 5 15 6 2 2 3 1 . . 5 . . . . 7 1 4 . . 1 . Combat Hostiles 6 | . . . . . . . . . . . . 2 . . . . . . . . . . . . . . . . . . . . . . . . . 4 . . . . Follow-up Attacks 7 | . . . . . . . . . . . . . . . . . 2 . . . . 5 . . . . . . . . . . . . . . . . . . . . Damage Inflicted 115187 | 20 843 687 2969 2635 . 373 3877 1591 . 2250 3458 2652 612 1125 2907 3439 779 2090 708 623 961 4384 2281 2600 2880 925 1043 2611 255 2965 2287 635 . 361 301 11098 5941 17385 2560 5556 6677 7843 Guns 23546 | 20 843 650 784 14 . . 906 730 . 1216 773 837 . 241 740 . 113 22 . . 142 1501 192 548 261 . 748 506 . 2965 303 323 . 253 . 900 631 720 501 548 2244 2371 Cannons 39174 | . . . 933 . . 221 1601 328 . 142 831 265 119 . 949 411 23 352 62 42 208 317 . 1188 2137 465 295 311 255 . 1111 312 . . 301 7446 3751 7810 1351 3670 1967 . Explosions 27109 | . . 37 963 363 . 152 1364 533 . 892 248 1447 373 844 31 . 307 290 203 455 611 1054 . . 155 226 . 1619 . . 181 . . 108 . 279 . 5861 708 1281 1673 4851 Melee 25352 | . . . 289 2258 . . . . . . 1606 103 120 40 1187 3028 336 1426 443 126 . 1512 2089 864 327 234 . 175 . . 692 . . . . 2473 1559 2994 . 57 793 621 Ramming 6 | . . . . . . . 6 . . . . . . . . . . . . . . . . . . . . . . . . . . . . . . . . . . . Kinetic 21603 | 20 843 540 696 . . 19 906 634 . 65 402 168 . 241 1219 . 136 50 . . 282 1085 . 71 . . . 480 . 2965 303 . . . . 900 1334 3209 . 494 1945 2596 Thermal 9856 | . . 37 996 14 . 202 1127 45 . 227 286 284 119 . 31 . . 83 . . . 243 . 521 248 127 . 35 . . 605 217 . 108 . 1412 691 1287 . . 911 . Explosive 20812 | . . . 963 363 . 152 994 488 . 665 248 1129 373 844 . . 307 . 203 . 346 948 . . . . . . . . 181 . . . . 168 . 4838 708 1281 762 4851 Electromagnetic 39643 | . . 110 25 . . . 844 424 . 1293 916 968 . . 470 411 . 531 62 497 333 596 192 1144 2305 564 1043 1921 255 . 506 418 . 253 301 6145 3060 7068 1351 3670 1967 . Impact . | . . . . . . . . . . . . . . . . . . . . . . . . . . . . . . . . . . . . . . . . . . . Slashing 23267 | . . . 289 2258 . . . . . . 1606 103 120 40 1187 3028 336 1426 443 126 . 1512 2089 864 327 234 . 175 . . 692 . . . . 2473 856 983 501 111 1092 396 Piercing . | . . . . . . . . . . . . . . . . . . . . . . . . . . . . . . . . . . . . . . . . . . . Highest Corruption 10 | . . . 4 4 4 4 . . . 4 2 2 2 2 . . 3 2 . . . 10 9 2 2 . . 2 . . 2 . . . . 9 5 . . . . . Average Corruption 3 | . . . 3 4 4 4 . . . 4 1 2 2 2 . . 2 1 . . . 6 5 1 1 . . 1 . . 1 . . . . 3 2 . . . . . Corruption Purged 40 | . . . . . . . . . . . . . . . . . 1 2 . . . 1 9 2 3 . . . . . 2 . . . . 9 11 . . . . . Effects 290 | . . . 52 17 8 13 . . . 14 22 10 8 6 . . 2 1 . . . 35 28 5 8 . . 4 . . 2 . . . . 26 29 . . . . . Message Errors 69 | . . . 12 5 2 2 . . . 3 6 4 1 1 . . 1 1 . . . 5 6 3 4 . . 3 . . . . . . . 3 7 . . . . . Matter Fused 46 | . . . 6 3 3 6 . . . 3 . . . . . . . . . . . 5 8 . . . . . . . . . . . . 4 8 . . . . . Heat Flow Errors 34 | . . . 3 3 1 2 . . . 2 3 2 4 1 . . 1 . . . . 2 3 . . . . . . . 1 . . . . 4 2 . . . . . Energy Discharges 49 | . . . 15 3 1 . . . . 1 4 1 2 1 . . . . . . . 4 5 1 1 . . 1 . . 1 . . . . 4 4 . . . . . Parts Rejected 2 | . . . . . . . . . . . . . . . . . . . . . . 1 . . . . . . . . . . . . . 1 . . . . . . Data Loss (minor) 30 | . . . 5 2 1 2 . . . 1 5 1 . 1 . . . . . . . 1 3 . 3 . . . . . . . . . . 3 2 . . . . . Data Loss (major) 1 | . . . . . . . . . . . . . . . . . . . . . . . . . . . . . . . . . . . . 1 . . . . . . Misfires 1 | . . . . . . . . . . . . . . . . . . . . . . 1 . . . . . . . . . . . . . . . . . . . . Misdirections 2 | . . . . . . . . . . . . . . . . . . . . . . 2 . . . . . . . . . . . . . . . . . . . . Targeting Errors 47 | . . . 8 1 . 1 . . . 2 4 2 1 2 . . . . . . . 13 3 . . . . . . . . . . . . 4 6 . . . . . Weapon Failures 9 | . . . 3 . . . . . . 2 . . . . . . . . . . . 1 . 1 . . . . . . . . . . . 2 . . . . . . Overload Shots . | . . . . . . . . . . . . . . . . . . . . . . . . . . . . . . . . . . . . . . . . . . . Overflow Damage 7861 | . . . 174 621 . . 57 . . 41 470 22 52 . 218 244 54 460 235 . 7 428 331 184 362 112 . 106 8 . 163 24 . 33 43 1159 295 924 164 542 229 99 Projectiles 1983 | . . . 12 . . . 15 . . . 10 . . . 26 . . 18 . . . . . 6 149 25 . . 8 . 50 24 . . 43 517 218 405 146 306 5 . Explosions 1324 | . . . 24 92 . . 42 . . 41 . 19 52 . 1 . 3 . . . 7 113 . . . . . 11 . . 7 . . 33 . 41 . 424 18 236 109 51 Melee 4554 | . . . 138 529 . . . . . . 460 3 . . 191 244 51 442 235 . . 315 331 178 213 87 . 95 . . 106 . . . . 601 77 95 . . 115 48 Knockbacks 15 | . . . 1 . . . . . . . . 3 . . 4 . . . . . 2 . . . . . . . . . . . . . . . . 5 . . . . Impact . | . . . . . . . . . . . . . . . . . . . . . . . . . . . . . . . . . . . . . . . . . . . Kinetic 14 | . . . 1 . . . . . . . . 2 . . 4 . . . . . 2 . . . . . . . . . . . . . . . . 5 . . . . Secondary 1 | . . . . . . . . . . . . 1 . . . . . . . . . . . . . . . . . . . . . . . . . . . . . . Self-Inflicted Damage 1508 | . . 56 88 . . . 68 33 . 49 . 131 . . . . 23 96 . . 27 58 . . . . . 83 . . 20 . . . . . . 173 . 54 216 333 Shots 32 | . . 1 4 . . . 1 1 . 1 . 3 . . . . 1 3 . . 1 1 . . . . . 2 . . 1 . . . . . . 4 . 1 3 4 Rammed 1 | . . . . . . . 1 . . . . . . . . . . . . . . . . . . . . . . . . . . . . . . . . . . . Targets Rammed 1 | . . . . . . . 1 . . . . . . . . . . . . . . . . . . . . . . . . . . . . . . . . . . . Kicked . | . . . . . . . . . . . . . . . . . . . . . . . . . . . . . . . . . . . . . . . . . . . Crushed . | . . . . . . . . . . . . . . . . . . . . . . . . . . . . . . . . . . . . . . . . . . . Highest Temperature 536 | . 12 18 314 266 179 180 450 390 . 486 426 536 210 238 243 448 248 341 365 96 411 446 237 352 327 273 . 244 114 110 348 104 . . 144 327 144 378 89 57 98 . Average Temperature 103 | . 8 9 76 99 98 73 104 144 . 131 101 206 57 54 58 112 71 146 169 52 153 183 74 111 78 111 . 86 47 56 91 60 . . 67 100 23 67 39 22 30 . Received Heat Transfer 5136 | . 69 189 231 55 . . 828 108 . 18 312 414 36 102 313 . . 73 . 117 383 106 . 44 75 . . 180 9 . 21 . . . . 257 481 271 4 83 90 267 Effects 57 | . . . . . . . 2 1 . 7 8 9 . . . 2 . 2 . . 8 14 . . 2 . . . . . 1 . . . . 1 . . . . . . Shutdowns 17 | . . . . . . . . . . 1 3 4 . . . 1 . . . . 2 5 . . . . . . . . . . . . . 1 . . . . . . Energy Bleed 11 | . . . . . . . . 1 . 2 1 2 . . . . . 1 . . 2 1 . . . . . . . . 1 . . . . . . . . . . . Interference 13 | . . . . . . . . . . 4 3 . . . . . . 1 . . 2 3 . . . . . . . . . . . . . . . . . . . . Matter Decay 2 | . . . . . . . . . . . . . . . . . . . . . . 2 . . . . . . . . . . . . . . . . . . . . Short Circuit 6 | . . . . . . . . . . . 1 . . . . . . . . . 1 2 . . 2 . . . . . . . . . . . . . . . . . Damage (minor) 3 | . . . . . . . . . . . . . . . . 1 . . . . 1 1 . . . . . . . . . . . . . . . . . . . . Damage (major) 4 | . . . . . . . 2 . . . . 2 . . . . . . . . . . . . . . . . . . . . . . . . . . . . . . Damage (core) 1 | . . . . . . . . . . . . 1 . . . . . . . . . . . . . . . . . . . . . . . . . . . . . . Siege Activations 35 | . . . . . . . . . . . . . . . . . . . . 1 . 4 . 5 4 2 . 2 . . 1 1 . . . 3 2 6 . 1 1 2 Total Turns 1116 | . . . . . . . . . . . . . . . . . . . . 24 . 150 . 355 62 27 . 44 . . 11 12 . . . 164 53 164 . 1 32 17 Longest Duration 106 | . . . . . . . . . . . . . . . . . . . . 24 . 73 . 106 28 18 . 31 . . 11 12 . . . 81 31 61 . 1 32 11 Robots Corrupted 162 | . . 1 . . . . . 2 . 8 1 4 . . . 1 . 1 . 4 . 2 1 4 10 3 7 4 1 . 3 1 . 1 1 27 12 29 7 19 8 . Combat Hostiles 121 | . . . . . . . . 1 . . 1 . . . . 1 . 1 . 4 . 2 1 4 7 3 3 . 1 . 2 1 . 1 1 25 10 23 7 14 8 . Parts Fried 363 | . . 1 . . . . 4 1 . 8 8 3 . . 3 3 . 2 . 10 3 3 1 8 24 4 16 13 . . 9 1 . . 3 63 23 65 18 46 20 . Impact Corruptions . | . . . . . . . . . . . . . . . . . . . . . . . . . . . . . . . . . . . . . . . . . . . Robots Melted . | . . . . . . . . . . . . . . . . . . . . . . . . . . . . . . . . . . . . . . . . . . . Combat Hostiles . | . . . . . . . . . . . . . . . . . . . . . . . . . . . . . . . . . . . . . . . . . . . Parts Melted 22 | . . . 1 . . 4 3 . . . . . . . . . . . . . . . . 1 . . . . . . . . . . . 9 . . 2 . . 2 Heat Transferred 11258 | . . 50 1716 37 . 333 1654 50 . 300 537 400 200 . 50 . . 50 . . . 300 . 700 174 100 . 50 . . 800 300 . 150 . 1090 659 933 . . 625 . Parts Sabotaged 10 | . . . . . . . . . . . . . . . . . . . . . . . . . . . . . . . . . . . . 2 . . . 4 . 4 Parts Stolen . | . . . . . . . . . . . . . . . . . . . . . . . . . . . . . . . . . . . . . . . . . . . Parts Stripped . | . . . . . . . . . . . . . . . . . . . . . . . . . . . . . . . . . . . . . . . . . . . Power Chain Reactions 22 | . . 1 . . . . 1 1 . 2 . 3 . . 1 . . 1 . . . 1 . . 1 1 . . . . . . . 1 . 2 . 4 . . 2 . Missiles Intercepted . | . . . . . . . . . . . . . . . . . . . . . . . . . . . . . . . . . . . . . . . . . . . Alert | -11 -10 -10 -9 -9 -9 -8 -8 -8 -8 -8 -7 -7 -7 -7 -6 -6 -6 -6 -6 -6 -5 -5 -5 -5 -5 -5 -5 -5 -4 -4 -4 -4 -4 -4 -3 -3 -3 -3 -2 -2 -1 -1 ------- Run | Scr Mat Min Mat Min Exi Min Mat Gar Mat Gar Fac Gar Fac Gar Fac Was Fac Low Low Dat Pro Fac Was Fac Ext Cet Arc Hub Fac Was Fac Upp Upp Zhi Pro Res Qua Sec Res Tes Acc Com Peak Influence 2614 | 5 254 215 552 299 . 164 648 1001 487 872 756 946 668 760 406 56 211 . . . . 614 198 339 381 294 257 1650 875 250 193 . . . . 1499 770 1812 1592 1925 2614 1849 Average Influence 446 | 1 105 114 305 208 . 114 481 758 487 690 517 730 542 576 150 30 62 . . . . 296 78 165 173 168 162 1004 797 142 53 . . . . 886 222 787 1243 1399 1846 1745 Maximum Alert Level 5 | . 1 1 2 1 . . 2 3 2 3 3 3 2 3 2 . 1 . . . . 2 . 1 1 1 1 5 3 1 . . . . . 4 3 5 4 5 5 5 Low Security (%) 40 | 100 93 79 35 51 . 100 11 . . . . . . . 68 100 93 . . . . 33 100 64 73 68 40 11 . 52 100 . . . . 13 60 . . . . . Level 1 18 | . 6 20 26 48 . . 6 3 . 11 6 . . 15 31 . 6 . . . . 39 . 35 26 31 59 1 . 47 . . . . . . 15 48 . . . . Level 2 18 | . . . 37 . . . 82 31 100 22 90 51 100 48 . . . . . . . 27 . . . . . 4 7 . . . . . . 8 17 9 . 2 . . Level 3 11 | . . . . . . . . 65 . 65 3 48 . 36 . . . . . . . . . . . . . 29 92 . . . . . . 49 5 7 41 10 . . Level 4 7 | . . . . . . . . . . . . . . . . . . . . . . . . . . . . 50 . . . . . . . 27 . 25 58 58 47 . Level 5 1 | . . . . . . . . . . . . . . . . . . . . . . . . . . . . 1 . . . . . . . . . 9 . 12 6 63 High Security 1 | . . . . . . . . . . . . . . . . . . . . . . . . . . . . . . . . . . . . . . . . 16 45 36 Max Security . | . . . . . . . . . . . . . . . . . . . . . . . . . . . . . . . . . . . . . . . . . . . Squads Dispatched 166 | . 1 . 2 . . . 7 . . . 8 . 3 . 5 . 1 . . . . 5 . 6 1 . . 4 1 . 7 . . . . 23 14 37 3 14 19 5 Investigation 16 | . 1 . 2 . . . . . . . 1 . . . 1 . . . . . . . . 2 . . . . . . 2 . . . . 2 . 3 . . 2 . Extermination 33 | . . . . . . . . . . . 4 . 1 . 3 . 1 . . . . 2 . 2 . . . . 1 . 2 . . . . 7 4 5 . 1 . . Reinforcement 34 | . . . . . . . 4 . . . 3 . 2 . 1 . . . . . . 1 . . 1 . . 1 . . 1 . . . . 2 4 7 1 4 1 1 Assault 38 | . . . . . . . . . . . . . . . . . . . . . . . . . . . . 1 . . . . . . . 10 . 6 1 6 10 4 Garrison 8 | . . . . . . . 3 . . . . . . . . . . . . . . . . . . . . 2 . . . . . . . . . . . . 3 . Intercept 37 | . . . . . . . . . . . . . . . . . . . . . . 2 . 2 . . . . . . 2 . . . . 2 6 16 1 3 3 . Construction Impeded 10 | . . . . . . . 1 . . . 1 . 1 . . . . . . . . 1 . . 1 . . . . . . . . . . . 1 2 1 1 . . Haulers Reinforced 6 | . . . . . . . . . . . 1 . 1 . 1 . . . . . . . . . . . . . . . . . . . . 2 . 1 . . . . Stealth | -11 -10 -10 -9 -9 -9 -8 -8 -8 -8 -8 -7 -7 -7 -7 -6 -6 -6 -6 -6 -6 -5 -5 -5 -5 -5 -5 -5 -5 -4 -4 -4 -4 -4 -4 -3 -3 -3 -3 -2 -2 -1 -1 --------- Run | Scr Mat Min Mat Min Exi Min Mat Gar Mat Gar Fac Gar Fac Gar Fac Was Fac Low Low Dat Pro Fac Was Fac Ext Cet Arc Hub Fac Was Fac Upp Upp Zhi Pro Res Qua Sec Res Tes Acc Com Distress Signals 38 | . 2 . 3 . . . 3 . . . . . 2 . 1 . . . . . . 1 . 3 3 2 . 4 . . 1 . . . . 4 2 4 . 1 2 . Communications Jammed 72 | . . . . . . . . . . . . . . . . . . . . . . 8 . 5 16 . . 4 . . 11 . . . . 11 4 13 . . . . Distress Signals 72 | . . . . . . . . . . . . . . . . . . . . . . 8 . 5 16 . . 4 . . 11 . . . . 11 4 13 . . . . Times Spotted 1014 | . 20 12 48 23 . 10 49 17 . 19 49 24 13 18 25 1 10 7 4 4 14 23 1 22 29 6 27 22 2 6 21 . . . . 124 59 127 14 58 64 42 Peak Tracking Total 24 | . 5 3 4 20 . 3 10 6 . 6 5 8 5 9 3 1 5 4 4 4 5 6 1 5 5 5 1 9 3 4 4 . . . 1 20 7 11 5 20 15 24 Tactical Retreats 68 | . 1 . . 1 . 1 10 2 . 1 2 6 1 . . . . . . . 6 . . 2 2 . . . . . 2 . . . . 12 4 7 . 3 5 . Traps | -11 -10 -10 -9 -9 -9 -8 -8 -8 -8 -8 -7 -7 -7 -7 -6 -6 -6 -6 -6 -6 -5 -5 -5 -5 -5 -5 -5 -5 -4 -4 -4 -4 -4 -4 -3 -3 -3 -3 -2 -2 -1 -1 ------- Run | Scr Mat Min Mat Min Exi Min Mat Gar Mat Gar Fac Gar Fac Gar Fac Was Fac Low Low Dat Pro Fac Was Fac Ext Cet Arc Hub Fac Was Fac Upp Upp Zhi Pro Res Qua Sec Res Tes Acc Com Traps Triggered 42 | . . . 5 . . . 1 2 . 3 2 6 2 . 2 . . . . . . 3 . 1 3 . . 2 2 . 1 . . . . 2 1 . 2 1 1 . Indirectly 3 | . . . . . . . . . . . . 3 . . . . . . . . . . . . . . . . . . . . . . . . . . . . . . Trap Hack Attempts . | . . . . . . . . . . . . . . . . . . . . . . . . . . . . . . . . . . . . . . . . . . . Triggered . | . . . . . . . . . . . . . . . . . . . . . . . . . . . . . . . . . . . . . . . . . . . Disarmed . | . . . . . . . . . . . . . . . . . . . . . . . . . . . . . . . . . . . . . . . . . . . Reprogrammed . | . . . . . . . . . . . . . . . . . . . . . . . . . . . . . . . . . . . . . . . . . . . Reused . | . . . . . . . . . . . . . . . . . . . . . . . . . . . . . . . . . . . . . . . . . . . Traps Extracted . | . . . . . . . . . . . . . . . . . . . . . . . . . . . . . . . . . . . . . . . . . . . Installed . | . . . . . . . . . . . . . . . . . . . . . . . . . . . . . . . . . . . . . . . . . . . Triggered 10 | . . . . . . . . . . . . . . . . . . 2 . . 1 . . . . . . . . . 3 . . . . 2 . 1 . . 1 . Machines | -11 -10 -10 -9 -9 -9 -8 -8 -8 -8 -8 -7 -7 -7 -7 -6 -6 -6 -6 -6 -6 -5 -5 -5 -5 -5 -5 -5 -5 -4 -4 -4 -4 -4 -4 -3 -3 -3 -3 -2 -2 -1 -1 ---------- Run | Scr Mat Min Mat Min Exi Min Mat Gar Mat Gar Fac Gar Fac Gar Fac Was Fac Low Low Dat Pro Fac Was Fac Ext Cet Arc Hub Fac Was Fac Upp Upp Zhi Pro Res Qua Sec Res Tes Acc Com Machines Disabled 98 | . . . 4 . . . 5 1 . 2 2 2 . 1 5 . 1 . . . . 4 . . 1 . 2 16 . . 1 . . 2 . . 13 19 3 11 2 1 Max in Single Turn 8 | . . . 2 . . . 1 1 . 1 1 1 . 1 1 . 1 . . . . 3 . . . . 1 8 . . 1 . . 2 . . 1 1 1 1 1 1 Garrison Access 12 | . . . . . . . . . . . . . . . 2 . 3 . . . . . . 1 . . . . . . 1 . . . . . 1 1 1 1 1 . Garrison Relay 6 | . . . . . . . . 1 . 2 . 2 . 1 . . . . . . . . . . . . . . . . . . . . . . . . . . . . Network Hub 2 | . . . . . . . . . . . . . . . . . . . . . . . . . . . . 2 . . . . . . . . . . . . . . Machines Sabotaged . | . . . . . . . . . . . . . . . . . . . . . . . . . . . . . . . . . . . . . . . . . . . Garrisons Compromised . | . . . . . . . . . . . . . . . . . . . . . . . . . . . . . . . . . . . . . . . . . . . Overloaded Fab Kills . | . . . . . . . . . . . . . . . . . . . . . . . . . . . . . . . . . . . . . . . . . . . Fab Network Shutdowns 4 | . . . . . . . . . . . . . . . . . . . . . . . . . . . . . . . . . . . . 1 . . 1 1 1 . Hacking | -11 -10 -10 -9 -9 -9 -8 -8 -8 -8 -8 -7 -7 -7 -7 -6 -6 -6 -6 -6 -6 -5 -5 -5 -5 -5 -5 -5 -5 -4 -4 -4 -4 -4 -4 -3 -3 -3 -3 -2 -2 -1 -1 --------- Run | Scr Mat Min Mat Min Exi Min Mat Gar Mat Gar Fac Gar Fac Gar Fac Was Fac Low Low Dat Pro Fac Was Fac Ext Cet Arc Hub Fac Was Fac Upp Upp Zhi Pro Res Qua Sec Res Tes Acc Com Machines Accessed 185 | . 8 . 9 1 1 . 5 . 2 . 12 . 2 . 23 . 10 . 1 4 . 7 . 11 11 3 1 4 4 . 9 . 1 7 . 7 11 14 4 7 3 3 Terminals 107 | . 7 . 7 . . . 4 . . . 6 . 1 . 13 . 4 . . . . 4 . 6 11 3 . 3 . . 5 . . . . 5 8 11 2 4 1 2 Fabricators 15 | . . . . . . . . . . . 2 . . . 5 . 1 . . . . . . 1 . . . . 1 . 1 . . . . 1 . . 1 1 1 . Repair Stations 16 | . . . 2 . . . . . . . 1 . . . 2 . . . . . . . . 3 . . . . 1 . 2 . . . . 1 1 1 . 1 . 1 Recycling Units 7 | . 1 . . . . . . . 1 . 1 . . . . . 1 . . . . 1 . . . . . . 2 . . . . . . . . . . . . . Scanalyzers 7 | . . . . . . . . . . . 1 . . . 1 . 1 . . . . 2 . . . . . . . . . . . . . . 1 1 . . . . Garrison Access 17 | . . . . . . . 1 . 1 . 1 . 1 . 2 . 3 . . . . . . 1 . . . 1 . . 1 . . . . . 1 1 1 1 1 . Total Hacks 625 | . 20 . 19 1 1 . 10 . 3 . 23 . 3 . 69 . 21 . 1 23 . 13 . 27 27 6 25 8 16 . 48 . 1 42 . 33 49 62 21 32 11 10 Successful 384 | . 14 . 12 1 1 . 4 . 2 . 12 . 2 . 40 . 15 . 1 23 . 6 . 19 20 5 25 6 9 . 27 . 1 42 . 13 27 30 9 10 6 2 Failed 240 | . 6 . 7 . . . 6 . 1 . 11 . 1 . 29 . 6 . . . . 7 . 8 7 1 . 2 7 . 20 . . . . 20 22 32 12 22 5 8 Catastrophic 37 | . 1 . 1 . . . 2 . . . 2 . . . 5 . . . . . . . . . . . . 1 . . 2 . . . . 3 1 13 2 3 . 1 Database Lockouts 1 | . . . . . . . . . . . . . . . . . . . . . . . . . . . . . . . 1 . . . . . . . . . . . Manual 297 | . 19 . 16 . . . 8 . . . 3 . . . 29 . 6 . . . . 8 . 11 15 6 2 7 . . 22 . . . . 28 35 46 2 23 2 9 Terminals 365 | . 18 . 17 . . . 8 . . . 10 . 2 . 42 . 11 . . . . 9 . 12 27 6 . 7 . . 25 . . . . 27 39 53 14 23 6 9 Fabricators 47 | . . . . . . . . . . . 4 . . . 14 . 2 . . . . . . 5 . . . . 4 . 4 . . . . 2 . . 5 3 4 . Repair Stations 60 | . . . 2 . . . . . . . 2 . . . 4 . . . . . . . . 8 . . . . 8 . 17 . . . . 4 6 3 . 5 . 1 Recycling Units 12 | . 2 . . . . . . . 2 . 2 . . . . . 1 . . . . 1 . . . . . . 4 . . . . . . . . . . . . . Scanalyzers 19 | . . . . . . . . . . . 3 . . . 5 . 1 . . . . 3 . . . . . . . . . . . . . . 2 5 . . . . Garrison Access 28 | . . . . . . . 2 . 1 . 2 . 1 . 4 . 6 . . . . . . 2 . . . 1 . . 2 . . . . . 2 1 2 1 1 . Terminal Hacks 178 | . 3 . 4 1 1 . 1 . . . 2 . 1 . 14 . 4 . 1 23 . 1 . 3 11 2 25 . . . 6 . 1 42 . 5 9 12 5 . 1 . Record 71 | . . . . . 1 . . . . . . . . . . . . . . 11 . . . . . . 25 . . . . . . 34 . . . . . . . . Part Schematic 19 | . . . . . . . . . . . . . . . 4 . 1 . . 5 . . . 2 1 . . . . . 1 . . 4 . . 1 . . . . . Robot Schematic 5 | . . . . . . . . . . . . . . . . . 1 . . 4 . . . . . . . . . . . . . . . . . . . . . . Prototype ID Bank 9 | . . . . . . . . . . . . . . . 2 . . . . 3 . . . . . . . . . . . . . 4 . . . . . . . . Open Door 11 | . . . . 1 . . . . . . . . . . . . . . 1 . . . . 1 6 1 . . . . . . 1 . . . . . . . . . Branch Access Points 2 | . . . . . . . . . . . . . . . . . 1 . . . . . . . . . . . . . . . . . . . . . 1 . . . Terminal Index 2 | . . . . . . . . . . . . . . . 1 . 1 . . . . . . . . . . . . . . . . . . . . . . . . . Fabricator Index 1 | . . . . . . . . . . . . . . . 1 . . . . . . . . . . . . . . . . . . . . . . . . . . . Scanalyzer Index 1 | . . . . . . . . . . . . . . . 1 . . . . . . . . . . . . . . . . . . . . . . . . . . . Unreport Threat 23 | . . . . . . . . . . . 1 . . . 1 . . . . . . . . . 1 1 . . . . . . . . . 4 5 6 4 . . . Locate Traps 5 | . . . . . . . . . . . . . . . 1 . . . . . . 1 . . 1 . . . . . 1 . . . . 1 . . . . . . Recall Investigation 2 | . . . 1 . . . . . . . . . . . . . . . . . . . . . . . . . . . 1 . . . . . . . . . . . Recall Extermination 4 | . . . . . . . . . . . . . . . 2 . . . . . . . . . . . . . . . . . . . . . 1 1 . . . . Recall Reinforcements 3 | . . . . . . . . . . . . . . . . . . . . . . . . . . . . . . . 1 . . . . . . 2 . . . . Recall Assault 2 | . . . . . . . . . . . . . . . . . . . . . . . . . . . . . . . . . . . . . . 2 . . . . Hauler Manifests 6 | . 1 . . . . . . . . . 1 . 1 . 1 . . . . . . . . . . . . . . . 1 . . . . . . . . . 1 . Registered Components 1 | . 1 . . . . . . . . . . . . . . . . . . . . . . . . . . . . . . . . . . . . . . . . . Zone Layout 11 | . 1 . 3 . . . 1 . . . . . . . . . . . . . . . . . 2 . . . . . 1 . . . . . 2 1 . . . . Fabricator Hacks 26 | . . . . . . . . . . . 3 . . . 8 . 2 . . . . . . 3 . . . . 2 . 1 . . . . 1 . . 2 2 2 . Network Status 2 | . . . . . . . . . . . 2 . . . . . . . . . . . . . . . . . . . . . . . . . . . . . . . Load Schematic 13 | . . . . . . . . . . . . . . . 5 . 1 . . . . . . 2 . . . . 1 . 1 . . . . . . . 1 1 1 . Build 11 | . . . . . . . . . . . 1 . . . 3 . 1 . . . . . . 1 . . . . 1 . . . . . . 1 . . 1 1 1 . Repair Station Hacks 40 | . . . . . . . . . . . 1 . . . 3 . . . . . . . . 7 . . . . 5 . 14 . . . . 3 1 2 . 4 . . Scan Component 23 | . . . . . . . . . . . 1 . . . 2 . . . . . . . . 4 . . . . 3 . 7 . . . . 2 1 1 . 2 . . Repair 17 | . . . . . . . . . . . . . . . 1 . . . . . . . . 3 . . . . 2 . 7 . . . . 1 . 1 . 2 . . Recycling Unit Hacks 6 | . 1 . . . . . . . 1 . . . . . . . 1 . . . . 1 . . . . . . 2 . . . . . . . . . . . . . Retrieve Components 6 | . 1 . . . . . . . 1 . . . . . . . 1 . . . . 1 . . . . . . 2 . . . . . . . . . . . . . Scanalyzer 16 | . . . . . . . . . . . 3 . . . 5 . . . . . . 2 . . . . . . . . . . . . . . 2 4 . . . . Insert Component 12 | . . . . . . . . . . . 2 . . . 2 . . . . . . 2 . . . . . . . . . . . . . . 2 4 . . . . Analyze 4 | . . . . . . . . . . . 1 . . . 3 . . . . . . . . . . . . . . . . . . . . . . . . . . . Garrison Access Hacks 27 | . . . . . . . 1 . 1 . 2 . 1 . 4 . 6 . . . . . . 2 . . . 1 . . 2 . . . . . 2 1 2 1 1 . Unlock Access 5 | . . . . . . . 1 . 1 . 1 . 1 . . . . . . . . . . . . . . 1 . . . . . . . . . . . . . . Seal Access 12 | . . . . . . . . . . . . . . . 2 . 3 . . . . . . 1 . . . . . . 1 . . . . . 1 1 1 1 1 . Coupler Status 10 | . . . . . . . . . . . 1 . . . 2 . 3 . . . . . . 1 . . . . . . 1 . . . . . 1 . 1 . . . Unauthorized Hacks 91 | . 10 . 8 . . . 2 . . . 1 . . . 6 . 2 . . . . 2 . 4 9 3 . 5 . . 4 . . . . 4 13 11 . 3 2 2 Terminals 89 | . 9 . 8 . . . 2 . . . 1 . . . 6 . 2 . . . . 2 . 4 9 3 . 5 . . 4 . . . . 3 13 11 . 3 2 2 Track 35 | . 3 . 5 . . . 2 . . . . . . . 1 . 1 . . . . . . 1 4 . . 3 . . . . . . . 2 5 5 . 1 1 1 Assimilate 11 | . 2 . 1 . . . . . . . . . . . 1 . . . . . . . . . . . . . . . . . . . . . 4 2 . . 1 . Botnet 33 | . 4 . 2 . . . . . . . . . . . 3 . . . . . . 2 . 3 3 3 . 1 . . 3 . . . . 1 3 3 . 1 . 1 Detonate 1 | . . . . . . . . . . . . . . . . . . . . . . . . . . . . 1 . . . . . . . . . . . . . . Disrupt 5 | . . . . . . . . . . . . . . . . . 1 . . . . . . . 1 . . . . . 1 . . . . . . 1 . 1 . . Operators 4 | . . . . . . . . . . . 1 . . . 1 . . . . . . . . . 1 . . . . . . . . . . . 1 . . . . . Fabricators 1 | . . . . . . . . . . . . . . . . . . . . . . . . . . . . . . . . . . . . 1 . . . . . . Download 1 | . . . . . . . . . . . . . . . . . . . . . . . . . . . . . . . . . . . . 1 . . . . . . Repair Stations . | . . . . . . . . . . . . . . . . . . . . . . . . . . . . . . . . . . . . . . . . . . . Recycling Units 1 | . 1 . . . . . . . . . . . . . . . . . . . . . . . . . . . . . . . . . . . . . . . . . Tunnel 1 | . 1 . . . . . . . . . . . . . . . . . . . . . . . . . . . . . . . . . . . . . . . . . Scanalyzers . | . . . . . . . . . . . . . . . . . . . . . . . . . . . . . . . . . . . . . . . . . . . Garrison Access . | . . . . . . . . . . . . . . . . . . . . . . . . . . . . . . . . . . . . . . . . . . . Data Cores Recovered 2 | . . . . . . . . . . . . . . . 1 . . . . . . . . 1 . . . . . . . . . . . . . . . . . . Used . | . . . . . . . . . . . . . . . . . . . . . . . . . . . . . . . . . . . . . . . . . . . Hacking Detections 123 | . 5 . 6 . . . 5 . 1 . 10 . 2 . 19 . 7 . . . . 6 . 10 6 1 . 4 2 . 6 . . . . 7 4 11 1 6 2 2 Full Trace Events 8 | . . . . . . . . . . . 1 . . . 1 . . . . . . . . 2 . . . . . . . . . . . 1 . 2 . . 1 . Feedback Events 2 | . . . . . . . . . . . 1 . . . . . . . . . . . . . . . . . . . . . . . . . . 1 . . . . Corruption 2 | . . . . . . . . . . . 1 . . . . . . . . . . . . . . . . . . . . . . . . . . 1 . . . . Feedback Blocked . | . . . . . . . . . . . . . . . . . . . . . . . . . . . . . . . . . . . . . . . . . . . Robot Schematics Acquired 5 | . . . . . . . . . . . . . . . . . 1 . . 4 . . . . . . . . . . . . . . . . . . . . . . Robots Built 2 | . . . . . . . . . . . 2 . . . . . . . . . . . . . . . . . . . . . . . . . . . . . . . Matter 219 | . . . . . . . . . . . 219 . . . . . . . . . . . . . . . . . . . . . . . . . . . . . . . Time 58 | . . . . . . . . . . . 58 . . . . . . . . . . . . . . . . . . . . . . . . . . . . . . . Total Robot Build Rating 6 | . . . . . . . . . . . 6 . . . . . . . . . . . . . . . . . . . . . . . . . . . . . . . Part Schematics Acquired 23 | . . . . . . . . . . . 1 . . . 6 . 1 . . 5 . . . 2 1 . . . . . 1 . . 4 . 1 1 . . . . . Parts Built 14 | . . . . . . . . . . . . . . . 6 . 1 . . . . . . 2 . . . . 1 . . . . . . 1 . . 1 1 1 . Matter 2903 | . . . . . . . . . . . . . . . 658 . 190 . . . . . . 234 . . . . 285 . . . . . . 417 . . 285 417 417 . Time 819 | . . . . . . . . . . . . . . . 281 . 95 . . . . . . 58 . . . . 50 . . . . . . 111 . . 76 74 74 . Total Part Build Rating 94 | . . . . . . . . . . . . . . . 38 . 5 . . . . . . 14 . . . . 5 . . . . . . 9 . . 5 9 9 . Parts Repaired 17 | . . . . . . . . . . . . . . . 1 . . . . . . . . 3 . . . . 2 . 7 . . . . 1 . 1 . 2 . . Time 606 | . . . . . . . . . . . . . . . 44 . . . . . . . . 64 . . . . 68 . 327 . . . . 51 . 36 . 16 . . Parts Recycled . | . . . . . . . . . . . . . . . . . . . . . . . . . . . . . . . . . . . . . . . . . . . Recycled Matter . | . . . . . . . . . . . . . . . . . . . . . . . . . . . . . . . . . . . . . . . . . . . Retrieved Matter . | . . . . . . . . . . . . . . . . . . . . . . . . . . . . . . . . . . . . . . . . . . . Retrieved Components 14 | . 1 . . . . . . . 3 . . . . . . . 3 . . . . 2 . . . . . . 5 . . . . . . . . . . . . . Parts Scanalyzed 3 | . . . . . . . . . . . 1 . . . 2 . . . . . . . . . . . . . . . . . . . . . . . . . . . Part Schematics Acquired 3 | . . . . . . . . . . . 1 . . . 2 . . . . . . . . . . . . . . . . . . . . . . . . . . . Parts Damaged . | . . . . . . . . . . . . . . . . . . . . . . . . . . . . . . . . . . . . . . . . . . . Bothacking | -11 -10 -10 -9 -9 -9 -8 -8 -8 -8 -8 -7 -7 -7 -7 -6 -6 -6 -6 -6 -6 -5 -5 -5 -5 -5 -5 -5 -5 -4 -4 -4 -4 -4 -4 -3 -3 -3 -3 -2 -2 -1 -1 ------------ Run | Scr Mat Min Mat Min Exi Min Mat Gar Mat Gar Fac Gar Fac Gar Fac Was Fac Low Low Dat Pro Fac Was Fac Ext Cet Arc Hub Fac Was Fac Upp Upp Zhi Pro Res Qua Sec Res Tes Acc Com Used RIF Installer 4 | . . . . . . . . 1 . 1 . 1 . 1 . . . . . . . . . . . . . . . . . . . . . . . . . . . . Robot Detection 1 | . . . . . . . . . . . . 1 . . . . . . . . . . . . . . . . . . . . . . . . . . . . . . Patrol Navigation 1 | . . . . . . . . . . . . . . 1 . . . . . . . . . . . . . . . . . . . . . . . . . . . . Program Shield 1 | . . . . . . . . . . 1 . . . . . . . . . . . . . . . . . . . . . . . . . . . . . . . . Robots Hacked 35 | . . . . . . . . . . 1 9 . 4 2 8 1 . . . . . 4 . 1 . . . . 1 . . 1 . 3 . . . . . . . . Non-combat 9 | . . . . . . . . . . . 2 . 1 . 2 . . . . . . 2 . . . . . . 1 . . 1 . . . . . . . . . . Combat 26 | . . . . . . . . . . 1 7 . 3 2 6 1 . . . . . 2 . 1 . . . . . . . . . 3 . . . . . . . . Robot Hacks Applied 40 | . . . . . . . . . . 1 10 . 5 2 8 1 . . . . . 4 . 4 . . . . 1 . . 1 . 3 . . . . . . . . parse_system 10 | . . . . . . . . . . . . . . . . . . . . . . 2 . 4 . . . . . . . 1 . 3 . . . . . . . . find_chute 5 | . . . . . . . . . . . 2 . . . 1 . . . . . . 1 . . . . . . 1 . . . . . . . . . . . . . find_recycling 2 | . . . . . . . . . . . . . 1 . 1 . . . . . . . . . . . . . . . . . . . . . . . . . . . block_reporting 1 | . . . . . . . . . . . . . . . . . . . . . . 1 . . . . . . . . . . . . . . . . . . . . ignore_targets 1 | . . . . . . . . . . . . . . . . 1 . . . . . . . . . . . . . . . . . . . . . . . . . . find_shortcuts 1 | . . . . . . . . . . . 1 . . . . . . . . . . . . . . . . . . . . . . . . . . . . . . . find_garrison 1 | . . . . . . . . . . . . . 1 . . . . . . . . . . . . . . . . . . . . . . . . . . . . . scatter_targeting 3 | . . . . . . . . . . . 1 . . . 2 . . . . . . . . . . . . . . . . . . . . . . . . . . . amplify_resonance 1 | . . . . . . . . . . . . . . . 1 . . . . . . . . . . . . . . . . . . . . . . . . . . . formatsys_high 15 | . . . . . . . . . . 1 6 . 3 2 3 . . . . . . . . . . . . . . . . . . . . . . . . . . . Relay Couplers Released 22 | . . . . . . . . 4 . 7 . 8 . 3 . . . . . . . . . . . . . . . . . . . . . . . . . . . . Machine Destruction 22 | . . . . . . . . 4 . 7 . 8 . 3 . . . . . . . . . . . . . . . . . . . . . . . . . . . . Attached 14 | . . . . . . . . . . 2 3 . 2 2 2 1 . . . . . 1 . . . . . . . . . . . . . . . 1 . . . . Robots Rewired 40 | . . . . . . . . 6 . 7 . 1 . . . . . 1 . . . . . . 18 . 3 1 . . . 3 . . . . . . . . . . Allies Hacked . | . . . . . . . . . . . . . . . . . . . . . . . . . . . . . . . . . . . . . . . . . . . Hacks Repelled . | . . . . . . . . . . . . . . . . . . . . . . . . . . . . . . . . . . . . . . . . . . . Allies | -11 -10 -10 -9 -9 -9 -8 -8 -8 -8 -8 -7 -7 -7 -7 -6 -6 -6 -6 -6 -6 -5 -5 -5 -5 -5 -5 -5 -5 -4 -4 -4 -4 -4 -4 -3 -3 -3 -3 -2 -2 -1 -1 -------- Run | Scr Mat Min Mat Min Exi Min Mat Gar Mat Gar Fac Gar Fac Gar Fac Was Fac Low Low Dat Pro Fac Was Fac Ext Cet Arc Hub Fac Was Fac Upp Upp Zhi Pro Res Qua Sec Res Tes Acc Com Total Allies 118 | . 1 . . 3 . . . 6 . 8 8 1 3 2 4 20 . 1 . . . . 20 . 27 5 3 1 . . . 3 . . . . . 1 . . 1 . Largest Group 22 | . 1 1 . 3 3 3 1 6 6 8 8 1 2 2 3 22 6 3 . . . . 20 14 15 15 15 15 . . . 3 . . . . . 1 . . 1 . Highest-Rated Group 866 | . 10 10 . 40 40 40 16 69 69 168 158 30 45 64 99 819 185 97 . . . . 717 487 557 866 724 724 . . . 168 . . . . . 44 . . 44 . Highest-Rated Ally 156 | . 10 10 . 16 16 16 16 18 18 38 38 30 29 32 41 50 38 33 . . . . 50 46 156 156 94 94 . . . 58 . . . . . 44 . . 44 . Total Orders 115 | . 2 2 . . . . . . . 10 2 . 2 2 30 4 6 . . . . . . . 10 25 12 4 . . . 1 . . . . . 2 . . 1 . STAY 10 | . . . . . . . . . . 1 . . . 1 5 1 . . . . . . . . 1 1 . . . . . . . . . . . . . . . . GOTO 57 | . 1 1 . . . . . . . 5 1 . 1 . 13 1 3 . . . . . . . 3 16 6 3 . . . 1 . . . . . 1 . . 1 . ROAM 4 | . . . . . . . . . . . . . . . . . . . . . . . . . 1 3 . . . . . . . . . . . . . . . . FOLLOW 44 | . 1 1 . . . . . . . 4 1 . 1 1 12 2 3 . . . . . . . 5 5 6 1 . . . . . . . . . 1 . . . . Ally Attacks 568 | . . . . 14 . 34 1 . . 41 78 3 16 6 29 13 19 7 . . . . 24 43 103 55 1 81 . . . . . . . . . . . . . . Total Damage 12752 | . . . . 168 . 389 . . . 722 1475 71 158 265 992 271 573 121 . . . . 394 1041 2298 1448 53 2313 . . . . . . . . . . . . . . Kills 110 | . . . . 3 . 4 . . . 11 12 1 1 1 5 2 2 1 . . . . 1 10 23 9 1 23 . . . . . . . . . . . . . . Allies Corrupted 11 | . . . . . . . . . . . . . . . 1 . . . . . . . . 1 . . . 9 . . . . . . . . . . . . . . Allies Melted . | . . . . . . . . . . . . . . . . . . . . . . . . . . . . . . . . . . . . . . . . . . . Intel | -11 -10 -10 -9 -9 -9 -8 -8 -8 -8 -8 -7 -7 -7 -7 -6 -6 -6 -6 -6 -6 -5 -5 -5 -5 -5 -5 -5 -5 -4 -4 -4 -4 -4 -4 -3 -3 -3 -3 -2 -2 -1 -1 ------- Run | Scr Mat Min Mat Min Exi Min Mat Gar Mat Gar Fac Gar Fac Gar Fac Was Fac Low Low Dat Pro Fac Was Fac Ext Cet Arc Hub Fac Was Fac Upp Upp Zhi Pro Res Qua Sec Res Tes Acc Com Robot Analysis Total 115 | . . . . . . . . . . . . . . . . . . . . 115 . . . . . . . . . . . . . . . . . . . . . . Derelict Logs Recovered 6 | . . 1 . 2 . . . . . . . . . . . . . 1 . . 1 . . . . . . . . . . 1 . . . . . . . . . . Drone Launches . | . . . . . . . . . . . . . . . . . . . . . . . . . . . . . . . . . . . . . . . . . . . Drone Recoveries . | . . . . . . . . . . . . . . . . . . . . . . . . . . . . . . . . . . . . . . . . . . . Exploration | -11 -10 -10 -9 -9 -9 -8 -8 -8 -8 -8 -7 -7 -7 -7 -6 -6 -6 -6 -6 -6 -5 -5 -5 -5 -5 -5 -5 -5 -4 -4 -4 -4 -4 -4 -3 -3 -3 -3 -2 -2 -1 -1 ------------- Run | Scr Mat Min Mat Min Exi Min Mat Gar Mat Gar Fac Gar Fac Gar Fac Was Fac Low Low Dat Pro Fac Was Fac Ext Cet Arc Hub Fac Was Fac Upp Upp Zhi Pro Res Qua Sec Res Tes Acc Com Turns Passed 44760 | 69 989 615 2268 824 346 644 1582 1070 102 928 2128 799 488 435 3138 738 935 684 443 651 715 1356 1007 1649 1683 624 495 607 542 839 1612 755 440 334 1531 2913 2584 3106 397 816 546 333 Spaces Moved 20990 | 50 751 407 1417 589 284 489 693 548 71 437 1047 325 246 227 1654 396 538 397 263 350 335 446 481 528 857 300 116 237 240 278 455 444 277 165 612 397 733 1311 254 448 588 309 Core 135 | 3 . . . . . . . . . . . . . . . . . . . . . . 35 . . . . . . 94 . . . . . . . . . . . 3 Treads 967 | . . . 70 . . . 349 168 . . . . . . . . . 1 . 33 . 35 . 6 23 44 . 3 . . . 14 . 1 1 4 11 203 . . . 1 Legs . | . . . . . . . . . . . . . . . . . . . . . . . . . . . . . . . . . . . . . . . . . . . Wheels 18005 | 47 751 407 1347 589 284 489 344 380 71 437 1047 325 246 227 1654 396 538 396 263 317 335 411 446 522 834 256 116 234 240 184 455 430 277 164 611 393 722 820 . . . . Hover 1883 | . . . . . . . . . . . . . . . . . . . . . . . . . . . . . . . . . . . . . . 288 254 448 588 305 Flight . | . . . . . . . . . . . . . . . . . . . . . . . . . . . . . . . . . . . . . . . . . . . Fastest Speed 22 | 50 100 110 110 120 120 120 120 120 130 120 130 150 150 150 130 130 130 130 130 120 130 130 140 120 120 130 140 140 120 130 130 130 130 130 120 120 120 88 92 92 22 30 Average Speed 133 | 97 104 110 119 120 120 120 158 149 130 129 143 165 150 153 145 145 134 141 133 151 151 146 191 132 142 150 169 156 130 273 133 133 130 130 129 132 139 132 92 92 40 41 Slowest Speed 850 | 100 110 110 200 120 120 130 205 192 130 130 150 220 150 160 160 160 160 220 150 220 160 220 850 220 220 220 170 220 140 550 180 250 130 250 220 250 250 255 92 96 88 300 Overloaded Moves 472 | . . . . . . . . . . . . . . . . . . . . . . . . . . . . . . . . . . . . . . 64 . . 352 56 Propulsion Burnouts 3 | . . . . . . . . . . . . . . . . . . . . . . . . . . . . . . . . . . . . . . . . . 2 1 Robots Hopped 11 | . . . . . . . . . . . . . . . . . . . . . . . . . . 11 . . . . . . . . . . . . . . . . Cave-ins Triggered 1 | . . . . . . . . . . . . . . . . . . . . . . . . . . . . . . . . . . . . 1 . . . . . . Teleports 6 | . . . . . . . . . . . . . . . . . . . . . . . . . . . . . . . . . . . . 1 3 1 . . 1 . Exploration Rate (%) 51 | 4 92 81 93 99 61 90 64 47 10 48 36 52 9 45 40 87 19 54 41 78 48 13 90 13 84 77 77 31 9 79 15 66 43 62 69 17 73 75 10 61 27 18 Regions Visited 42 Branch Regions 20 Pre-discovered Areas 41 | . 1 1 . 3 1 . . . . . . . . . . . . . . 32 . . . . . . . . . . . . . 3 . . . . . . . . Known Exits Taken 17 | . . . . . . . 1 . 1 . 1 . 1 . . . 1 . . . 1 . . . . . . . . . 1 1 1 1 1 1 1 1 1 1 1 . Unknown Exits Taken 15 | 1 1 1 1 1 1 1 . . . . . . . . . . . 1 1 1 . . . 1 1 1 1 1 . . . . . . . . . . . . . . Scrap Searched 12 | . . 1 . 1 . 3 . . . . . . . . . . . 1 1 . . . . . . . . . . . . 1 3 . 1 . . . . . . . Spaces Dug 640 | . . . 21 1 . 7 1 . . 20 16 . 3 1 55 . 33 4 14 . 37 23 . 21 14 . . 10 13 . 26 8 9 . 22 44 54 64 25 49 24 21 Terrain Destroyed 1862 | . . 9 76 28 . 16 83 20 . 39 25 92 11 13 66 . 35 9 17 . 56 154 . 31 28 17 . 348 15 . 65 10 28 . 59 57 67 197 29 72 69 21 Melee 363 | . . . 11 1 . . 1 . . . 8 . 3 1 55 . 21 4 5 . 17 23 . 11 13 . . 6 . . 15 8 . . 9 17 40 22 10 17 24 21 Projectile 315 | . . . . . . . 5 1 . . 3 7 1 2 6 . 2 . . . 1 7 . 20 9 . . 12 15 . 18 2 28 . 50 13 27 38 10 38 . . AOE 1184 | . . 9 65 27 . 16 77 19 . 39 14 85 7 10 5 . 12 5 12 . 38 124 . . 6 17 . 330 . . 32 . . . . 27 . 137 9 17 45 . Actions | -11 -10 -10 -9 -9 -9 -8 -8 -8 -8 -8 -7 -7 -7 -7 -6 -6 -6 -6 -6 -6 -5 -5 -5 -5 -5 -5 -5 -5 -4 -4 -4 -4 -4 -4 -3 -3 -3 -3 -2 -2 -1 -1 --------- Run | Scr Mat Min Mat Min Exi Min Mat Gar Mat Gar Fac Gar Fac Gar Fac Was Fac Low Low Dat Pro Fac Was Fac Ext Cet Arc Hub Fac Was Fac Upp Upp Zhi Pro Res Qua Sec Res Tes Acc Com Total 33737 | 63 861 490 1758 641 288 524 996 700 87 701 1471 487 331 273 2144 495 684 462 321 469 474 929 529 1292 1229 446 326 407 451 369 1361 553 329 237 1284 2514 2027 2304 370 792 827 441 Wait 6265 | . 24 6 74 7 3 20 87 5 6 113 155 5 34 2 220 19 58 10 26 17 58 183 8 415 125 89 106 61 142 4 675 32 12 . 578 1654 821 254 25 71 45 16 Move 20933 | 49 750 406 1416 588 283 488 693 546 71 435 1047 323 246 225 1654 395 537 396 262 349 334 446 480 527 856 281 115 236 240 277 454 443 276 164 611 396 732 1310 253 447 587 309 Hop 7 | . . . . . . . . . . . . . . . . . . . . . . . . . . 7 . . . . . . . . . . . . . . . . Pick Up 565 | 6 13 6 39 3 . 1 21 12 4 6 26 21 4 3 29 10 9 1 1 30 3 13 5 28 17 9 1 7 8 6 26 1 3 3 4 23 49 65 7 25 10 7 Fast Attach 221 | 6 1 . 3 1 . . 7 6 . 2 7 1 4 . 4 1 1 1 . 5 1 12 1 8 10 4 1 5 6 . 14 4 2 4 3 14 19 37 2 16 6 2 Attach 543 | . . 2 6 . . . 20 1 . 3 10 7 1 4 15 5 3 . 2 7 11 35 2 38 22 5 2 7 9 5 24 2 5 . 8 50 49 95 6 26 38 18 Detach 406 | . . . 1 . . . 4 1 . 2 2 3 . . 5 5 2 2 . 9 5 40 1 35 18 7 2 10 9 . 25 6 . 4 6 50 37 65 5 15 26 4 Swap 884 | . 10 12 58 6 2 4 36 9 1 18 71 21 13 15 45 12 28 20 12 14 19 40 3 57 33 11 6 23 6 4 31 7 . 3 4 57 60 74 21 12 3 3 Drop 576 | . 8 5 35 2 . . 15 13 5 9 26 14 4 2 18 8 10 2 1 32 5 13 7 26 27 15 2 13 8 4 30 5 3 6 7 27 54 63 9 28 8 7 Fire 2389 | 2 55 53 102 4 . 11 111 67 . 82 87 63 19 18 73 14 8 14 7 5 20 98 7 122 89 16 88 35 23 69 62 45 28 53 54 173 113 240 32 117 70 40 Melee 825 | . . . 24 29 . . 1 20 . 7 40 5 6 4 73 26 28 16 10 1 18 49 15 28 16 2 3 10 . . 20 8 . . 9 70 85 101 10 22 34 35 Ram 1 | . . . . . . . 1 . . . . . . . . . . . . . . . . . . . . . . . . . . . . . . . . . . . Kick . | . . . . . . . . . . . . . . . . . . . . . . . . . . . . . . . . . . . . . . . . . . . Crush . | . . . . . . . . . . . . . . . . . . . . . . . . . . . . . . . . . . . . . . . . . . . Escape Stasis 117 | . . . . . . . . 16 . 24 . 24 . . 8 . . . . . . . . 8 16 . . . . . . . . . . . 8 . . 13 . . Rewire 5 | . . . . 1 . . . 4 . . . . . . . . . . . . . . . . . . . . . . . . . . . . . . . . . . Trap . | . . . . . . . . . . . . . . . . . . . . . . . . . . . . . . . . . . . . . . . . . . . Miscellaneous . | . . . . . . . . . . . . . . . . . . . . . . . . . . . . . . . . . . . . . . . . . . . Route ------- -11/Scrapyard -10/Materials (discovered 5 exits: *Mat x3 / *Min x2) -10/Mines (discovered 2 exits: *Mat x2) -9/Materials (discovered 4 exits: *Mat x3 / *Min) -9/Mines (discovered 4 exits: *Mat x2 / *Exi / [*Zio]) -9/Exiles (discovered 2 exits: [*Min x2]) -8/Mines (discovered 2 exits: *Mat x2) -8/Materials (discovered 3 exits: *Fac x2 / Gar) -8/Garrison -8/Materials -8/Garrison -7/Factory (discovered 3 exits: *Fac / [*Low] / Gar) -7/Garrison -7/Factory -7/Garrison -6/Factory -6/Waste -6/Factory (discovered 3 exits: *Fac / *Low x2) -6/Lower Caves -6/Lower Caves -6/Data Miner -5/Proximity Caves -5/Factory -5/Waste -5/Factory -5/Extension (discovered 2 exits: *Fac / *Cet) -5/Cetus (discovered 2 exits: *Fac / *Arc) -5/Archives (discovered 2 exits: *Hub x2) -5/Hub_04(d) (discovered 3 exits: *Fac x2 / Gar) -4/Factory -4/Waste -4/Factory (discovered 2 exits: *Res / *Upp) -4/Upper Caves -4/Upper Caves -4/Zhirov -3/Proximity Caves -3/Research (discovered 2 exits: *Res / *Qua) -3/Quarantine (discovered 2 exits: Res / *Sec) -3/Section 7 -2/Research (discovered 2 exits: *Tes x2) -2/Testing -1/Access -1/Command History --------- Turn | Location | Event 2 | -11/Scrapyard | Met Revision 17 30 | -11/Scrapyard | Discovered new exit (range 15) 70 | -11/Scrapyard | Entered Materials 192 | -10/Materials | Discovered new exit (range 7) 308 | -10/Materials | Build established: Mutant 448 | -10/Materials | Discovered new exit (range 8) 513 | -10/Materials | Discovered new exit (range 16) 664 | -10/Materials | Discovered new exit (range 14) 735 | -10/Materials | Discovered new exit (range 9) 1059 | -10/Materials | Entered Mines 1059 | -10/Mines | Accompanied by 1 ally 1063 | -10/Mines | Core integrity fell below 50% 1091 | -10/Mines | Assisted by bots powering up and referring to "LRC-V3" 1177 | -10/Mines | Destroyed YI-UF0 1179 | -10/Mines | Found Prototype Storage 1290 | -10/Mines | Discovered new exit (range 9) 1637 | -10/Mines | Core integrity fell below 20% 1661 | -10/Mines | Learned location of Zion (-7) 1666 | -10/Mines | Discovered new exit (range 7) 1674 | -10/Mines | Entered Materials 1674 | -9/Materials | Evolved 2 slots: Utility x2 1691 | -9/Materials | Identified YI-UF0's Bottomless Matter Pit 2003 | -9/Materials | Build established: Hauler-Mutant 2292 | -9/Materials | Discovered new exit (range 7) 2610 | -9/Materials | Discovered new exit (range 10) 2653 | -9/Materials | Discovered new exit (range 16) 3674 | -9/Materials | Discovered new exit (range 8) 3942 | -9/Materials | Entered Mines 3976 | -9/Mines | Assembled infested the area 3988 | -9/Mines | Met 8R-AWN 3988 | -9/Mines | Assisted by bots powering up and referring to "LRC-V3" 4068 | -9/Mines | Met a Derelict bent on vengeance 4530 | -9/Mines | A Derelict revealed a hidden shortcut to a safe place 4546 | -9/Mines | Discovered new exit (range 10) 4562 | -9/Mines | Met a Derelict who couldn't figure out how to use a Trap Extractor 4645 | -9/Mines | Discovered new exit (range 12) 4665 | -9/Mines | Learned location of Storage (-7) 4756 | -9/Mines | Discovered new exit (range 5) 4766 | -9/Mines | Entered Exiles 4766 | -9/Exiles | Accompanied by 3 allies 4782 | -9/Exiles | Discovered new exit (range 15) 4798 | -9/Exiles | Welcomed by 8R-AWN 4817 | -9/Exiles | Met EX-HEX 4883 | -9/Exiles | Met EX-DEC 4959 | -9/Exiles | Discovered new exit (range 14) 5034 | -9/Exiles | Met EX-BIN 5112 | -9/Exiles | Entered Mines 5112 | -8/Mines | Accompanied by 3 allies 5430 | -8/Mines | Discovered new exit (range 8) 5560 | -8/Mines | Discovered new exit (range 12) 5756 | -8/Mines | Entered Materials 5756 | -8/Materials | Accompanied by 1 ally 5756 | -8/Materials | Evolved 2 slots: Utility x2 5883 | -8/Materials | Garrison activated, responded to threat 6068 | -8/Materials | Destroyed 8 combat bots 6223 | -8/Materials | Lost 4 parts (3n1u) 6240 | -8/Materials | Discovered new exit (range 14) 6631 | -8/Materials | Lost 7 parts (1p2n1u3w) 7131 | -8/Materials | Discovered new exit (range 16) 7338 | -8/Materials | Identified exit to Garrison 7338 | -8/Materials | Entered Garrison 7478 | -8/Garrison | Triggered checkpoint 7673 | -8/Garrison | Triggered checkpoint 7701 | -8/Garrison | Core integrity fell below 50% 7725 | -8/Garrison | Destroyed 7 combat bots 7766 | -8/Garrison | Triggered checkpoint 7855 | -8/Garrison | Triggered checkpoint 7883 | -8/Garrison | Triggered checkpoint 7941 | -8/Garrison | Triggered checkpoint 7969 | -8/Garrison | Discovered new exit (range 13) 8010 | -8/Garrison | Installed Relay Interface Framework 8053 | -8/Garrison | Garrison Relay disabled 8408 | -8/Garrison | Entered Materials 8408 | -8/Materials | Accompanied by 6 allies 8504 | -8/Materials | Identified exit to Garrison 8510 | -8/Materials | Entered Garrison 8510 | -8/Garrison | Accompanied by 6 allies 8517 | -8/Garrison | Expanded RIF knowledge: Program Shield 8588 | -8/Garrison | Triggered checkpoint 8617 | -8/Garrison | Garrison Relay disabled 8690 | -8/Garrison | Triggered checkpoint 8794 | -8/Garrison | Triggered checkpoint 8883 | -8/Garrison | Discovered new exit (range 13) 8892 | -8/Garrison | Triggered checkpoint 8908 | -8/Garrison | Build established: Bothacker-Mutant 8914 | -8/Garrison | Garrison Relay disabled 9438 | -8/Garrison | Entered Factory 9438 | -7/Factory | Accompanied by 8 allies 9438 | -7/Factory | Evolved 2 slots: Power x1, Utility x1 9734 | -7/Factory | P-60 Hacker assimilated allied Trooper 4a 9949 | -7/Factory | Lost 8 parts (2p2n3u1w) 10264 | -7/Factory | Fabricated H-55 Commando (x2) 10447 | -7/Factory | Build established: Scavenger-Mutant 10782 | -7/Factory | Discovered new exit (range 16) 11272 | -7/Factory | Build established: Hauler-Mutant 11422 | -7/Factory | Discovered new exit (range 8) 11566 | -7/Factory | Identified exit to Garrison 11566 | -7/Factory | Entered Garrison 11804 | -7/Garrison | Triggered checkpoint 11845 | -7/Garrison | Garrison Relay disabled 11962 | -7/Garrison | Triggered checkpoint 11985 | -7/Garrison | Core integrity fell below 50% 12010 | -7/Garrison | Triggered checkpoint 12012 | -7/Garrison | Lost 5 parts (3u2w) 12017 | -7/Garrison | Destroyed 9 combat bots 12145 | -7/Garrison | Build established: Bothacker-Mutant 12176 | -7/Garrison | Discovered new exit (range 15) 12207 | -7/Garrison | Expanded RIF knowledge: Robot Detection 12233 | -7/Garrison | Triggered checkpoint 12286 | -7/Garrison | Garrison Relay disabled 12365 | -7/Garrison | Entered Factory 12853 | -7/Factory | Identified exit to Garrison 12853 | -7/Factory | Entered Garrison 12918 | -7/Garrison | Triggered checkpoint 12939 | -7/Garrison | Garrison Relay disabled 13098 | -7/Garrison | Triggered checkpoint 13100 | -7/Garrison | Triggered checkpoint 13126 | -7/Garrison | Triggered checkpoint 13130 | -7/Garrison | Triggered checkpoint 13144 | -7/Garrison | Core integrity fell below 20% 13164 | -7/Garrison | Lost 3 parts (1p1u1w) 13165 | -7/Garrison | Destroyed 10 combat bots 13250 | -7/Garrison | Discovered new exit (range 10) 13274 | -7/Garrison | Expanded RIF knowledge: Patrol Navigation 13288 | -7/Garrison | Entered Factory 13288 | -6/Factory | Accompanied by 1 ally 13288 | -6/Factory | Evolved 2 slots: Utility x2 13607 | -6/Factory | Build established: Botlord-Mutant 13689 | -6/Factory | Spotted B-75 Beast 13842 | -6/Factory | Fabricated Imp. System Backup Module (x2) 14175 | -6/Factory | Build established: Bothacker-Mutant 14752 | -6/Factory | Found Prototype Processor 15000 | -6/Factory | Discovered new exit (range 16) 15162 | -6/Factory | Fabricated Centrium Wheel? 15301 | -6/Factory | Fabricated Centrium Wheel? 15676 | -6/Factory | Identified Exp. Signal Interpreter 15820 | -6/Factory | Repaired Med. Reactive Plating 16426 | -6/Factory | Sucked down chute 16426 | -6/Factory | Entered Waste 16427 | -6/Waste | Joined by Warlord forces that had cleared the area 16455 | -6/Waste | 2 allies followed down the chute 16610 | -6/Waste | A Compactor rumbled back to life 16611 | -6/Waste | Allies destroyed C-40 Crusher 17034 | -6/Waste | Discovered new exit (range 15) 17048 | -6/Waste | Found Damper Plating 17080 | -6/Waste | A Compactor rumbled back to life 17088 | -6/Waste | Allies destroyed C-40 Crusher 17126 | -6/Waste | Found Damper Plating 17164 | -6/Waste | Entered Factory 17164 | -6/Factory | Accompanied by 6 allies 17419 | -6/Factory | Fabricated Hvy. Reactive Plating (x1) 17741 | -6/Factory | Found Exp. Signal Interpreter 17905 | -6/Factory | Identified exit to Lower Caves 17992 | -6/Factory | Discovered new exit (range 13) 18099 | -6/Factory | Entered Lower Caves 18099 | -6/Lower Caves | Accompanied by 3 allies 18188 | -6/Lower Caves | Learned Factory stockpile data 18696 | -6/Lower Caves | Discovered new exit (range 13) 18783 | -6/Lower Caves | Entered another Lower Caves area 19220 | -6/Lower Caves | Discovered new exit (range 5) 19226 | -6/Lower Caves | Entered Data Miner 19226 | -6/Data Miner | Discovered new exit (range 6) 19255 | -6/Data Miner | Met Data Miner 19283 | -6/Data Miner | Learned location of Section 7 (-3) 19283 | -6/Data Miner | Acquired the access code to Warlord's prototype stash 19312 | -6/Data Miner | Received God Mode back door access code from Data Miner 19414 | -6/Data Miner | Destroyed Data Miner 19417 | -6/Data Miner | Interfaced with the Data Conduit 19421 | -6/Data Miner | Found Prototype Hackware 19424 | -6/Data Miner | Found Prototype Hackware 19426 | -6/Data Miner | Found Prototype Hackware 19429 | -6/Data Miner | Found Prototype Hackware 19633 | -6/Data Miner | Build established: Hauler-Mutant 19877 | -6/Data Miner | Entered Proximity Caves 20114 | -5/Proximity Caves | Lost 5 parts (3u2w) 20574 | -5/Proximity Caves | Learned 4 Factory zone layouts 20578 | -5/Proximity Caves | Discovered new exit (range 6) 20583 | -5/Proximity Caves | Identified exit to Factory 20592 | -5/Proximity Caves | Entered Factory 20592 | -5/Factory | Evolved 2 slots: Utility x2 20595 | -5/Factory | Loaded intel: 297 machine locations 21103 | -5/Factory | Identified System Mapper 21103 | -5/Factory | Identified Deep Network Scanner 21236 | -5/Factory | Intercept squad dispatched 21245 | -5/Factory | Spotted Tracker 21284 | -5/Factory | Spotted Combat Programmer 21315 | -5/Factory | Destroyed Tracker 21331 | -5/Factory | Found Exp. Targeting Computer 21401 | -5/Factory | Found Exp. Phase Shifter 21680 | -5/Factory | Destroyed Combat Programmer 21824 | -5/Factory | System corruption reached 10% 21948 | -5/Factory | Sucked down chute 21948 | -5/Factory | Entered Waste 21949 | -5/Waste | Joined by Warlord forces that had cleared the area 22100 | -5/Waste | A Compactor rumbled back to life 22100 | -5/Waste | Spotted C-40 Crusher 22110 | -5/Waste | Allies destroyed C-40 Crusher 22217 | -5/Waste | Found Damper Plating 22250 | -5/Waste | Discovered new exit (range 16) 22955 | -5/Waste | Entered Factory 22955 | -5/Factory | Accompanied by 14 allies 22956 | -5/Factory | Loaded intel: 276 machine locations 23475 | -5/Factory | Repaired Hcp. Storage Unit 23594 | -5/Factory | Repaired Hcp. Storage Unit 23620 | -5/Factory | Intercept squad dispatched 23640 | -5/Factory | Spotted Tracker 23652 | -5/Factory | Destroyed Tracker 23662 | -5/Factory | Spotted Combat Programmer 23970 | -5/Factory | Destroyed Combat Programmer 23983 | -5/Factory | Found EMDS 23999 | -5/Factory | Found Exp. Remote Datajack 24005 | -5/Factory | Found Exp. Focal Shield 24071 | -5/Factory | Repaired Hvy. Reactive Plating 24268 | -5/Factory | Fabricated Centrium Wheel (x2) 24599 | -5/Factory | Discovered new exit (range 6) 24604 | -5/Factory | Entered Extension 24605 | -5/Extension | Loaded intel: 30 machine locations 24779 | -5/Extension | Rescued a captive Derelict 24780 | -5/Extension | Rescued a captive Derelict 24797 | -5/Extension | Rescued a captive Derelict 24920 | -5/Extension | Rescued a captive Derelict 24923 | -5/Extension | Rescued a captive Derelict 24926 | -5/Extension | P-70 Sage assimilated allied YI-4XP(h) 25575 | -5/Extension | Spotted B-75 Beast 25585 | -5/Extension | Destroyed B-75 Beast 25770 | -5/Extension | Rescued a captive Derelict 25920 | -5/Extension | Rescued a captive Derelict 25921 | -5/Extension | Rescued a captive Derelict 26174 | -5/Extension | Rescued A7 26239 | -5/Extension | Discovered new exit (range 10) 26240 | -5/Extension | Discovered new exit (range 6) 26287 | -5/Extension | Entered Cetus 26287 | -5/Cetus | Accompanied by 15 allies 26288 | -5/Cetus | Loaded intel: 24 machine locations 26292 | -5/Cetus | Acquired a Cetus Manufacturing Module code from A7 26321 | -5/Cetus | Build established: Commander-Mutant 26321 | -5/Cetus | Spotted Cetus Guard 26321 | -5/Cetus | Spotted Cetus Guard 26324 | -5/Cetus | Spotted Cetus Guard 26329 | -5/Cetus | Allies destroyed Cetus Guard 26329 | -5/Cetus | Spotted Cetus Guard 26333 | -5/Cetus | Allies destroyed Cetus Guard 26336 | -5/Cetus | Destroyed Cetus Guard 26340 | -5/Cetus | Destroyed Cetus Guard 26466 | -5/Cetus | Started Cetus Manufacturing Module 26478 | -5/Cetus | Escorted A7 to Cetus Mainframe 26491 | -5/Cetus | Manufactured an Enhanced Grunt 26516 | -5/Cetus | Manufactured an Enhanced Grunt 26541 | -5/Cetus | Manufactured an Enhanced Grunt 26566 | -5/Cetus | Manufactured an Enhanced Grunt 26591 | -5/Cetus | Manufactured an Enhanced Grunt 26613 | -5/Cetus | Discovered new exit (range 15) 26652 | -5/Cetus | Destroyed Cetus Guard 26660 | -5/Cetus | Spotted Cetus Guard 26661 | -5/Cetus | Spotted Cetus Guard 26667 | -5/Cetus | Allies destroyed Cetus Guard 26674 | -5/Cetus | Allies destroyed Cetus Guard 26687 | -5/Cetus | Discovered new exit (range 15) 26700 | -5/Cetus | Met Revision 17 26852 | -5/Cetus | Destroyed A7 26856 | -5/Cetus | Extracted ID and sensor layout for unrecognized location from A7's data core 26872 | -5/Cetus | Found Exp. Thermal Shield 26911 | -5/Cetus | Entered Archives 26911 | -5/Archives | Accompanied by 12 allies 26912 | -5/Archives | Loaded intel: 8 machine locations 27060 | -5/Archives | Discovered new exit (range 15) 27115 | -5/Archives | Unable to access archive contents 27115 | -5/Archives | Unable to access archive contents 27132 | -5/Archives | Unable to access archive contents 27150 | -5/Archives | Unable to access archive contents 27167 | -5/Archives | Unable to access archive contents 27320 | -5/Archives | Discovered new exit (range 16) 27406 | -5/Archives | Entered Hub_04(d) 27406 | -5/Hub_04(d) | Accompanied by 15 allies 27407 | -5/Hub_04(d) | Loaded intel: 119 machine locations 27461 | -5/Hub_04(d) | Garrison activated, responded to threat 27491 | -5/Hub_04(d) | Spotted B-75 Beast 27520 | -5/Hub_04(d) | Discovered new exit (range 8) 27695 | -5/Hub_04(d) | Network Hub disabled 27717 | -5/Hub_04(d) | Spotted Lightning 27718 | -5/Hub_04(d) | Spotted Lightning 27726 | -5/Hub_04(d) | Spotted Lightning 27735 | -5/Hub_04(d) | Destroyed Lightning 27738 | -5/Hub_04(d) | Garrison activated, responded to threat 27741 | -5/Hub_04(d) | Destroyed Lightning 27753 | -5/Hub_04(d) | Destroyed Lightning 27822 | -5/Hub_04(d) | Found EM Dispersion Field 27826 | -5/Hub_04(d) | Found EMDS 27829 | -5/Hub_04(d) | Found EMDS 27841 | -5/Hub_04(d) | Found Exp. Phase Shifter 27862 | -5/Hub_04(d) | Build established: Hauler-Mutant 27898 | -5/Hub_04(d) | Identified exit to Garrison 27982 | -5/Hub_04(d) | Discovered new exit (range 9) 28001 | -5/Hub_04(d) | Network Hub disabled 28003 | -5/Hub_04(d) | Spotted Lightning 28003 | -5/Hub_04(d) | Spotted Lightning 28003 | -5/Hub_04(d) | Spotted Lightning 28006 | -5/Hub_04(d) | First assault squad dispatched 28013 | -5/Hub_04(d) | Entered Factory 28013 | -4/Factory | Evolved 2 slots: Utility x2 28014 | -4/Factory | Loaded intel: 268 machine locations 28079 | -4/Factory | Fabricated Exp. Signal Interpreter (x1) 28455 | -4/Factory | Repaired Hvy. Reactive Plating 28499 | -4/Factory | Repaired Broken Centrium Wheel 28555 | -4/Factory | Sucked down chute 28555 | -4/Factory | Entered Waste 28590 | -4/Waste | Spotted C-40 Crusher 28624 | -4/Waste | Destroyed C-40 Crusher 28625 | -4/Waste | Spotted C-40 Crusher 28638 | -4/Waste | Destroyed C-40 Crusher 28649 | -4/Waste | Destroyed C-40 Crusher 28661 | -4/Waste | Destroyed C-40 Crusher 28665 | -4/Waste | Spotted C-40 Crusher 28672 | -4/Waste | Spotted C-40 Crusher 28700 | -4/Waste | Destroyed C-40 Crusher 28705 | -4/Waste | Destroyed C-40 Crusher 28710 | -4/Waste | Found Damper Plating 28718 | -4/Waste | Found Damper Plating 28737 | -4/Waste | Found Damper Plating 28825 | -4/Waste | Discovered new exit (range 10) 29386 | -4/Waste | Identified exit to Factory 29394 | -4/Waste | Entered Factory 29395 | -4/Factory | Loaded intel: 234 machine locations 29519 | -4/Factory | Discovered new exit (range 12) 29567 | -4/Factory | Identified exit to Research 30061 | -4/Factory | Intercept squad dispatched 30069 | -4/Factory | Spotted Tracker 30078 | -4/Factory | Destroyed Tracker 30091 | -4/Factory | Found Exp. Targeting Computer 30112 | -4/Factory | Spotted Combat Programmer 30274 | -4/Factory | Discovered new exit (range 9) 30286 | -4/Factory | Identified exit to Upper Caves 30297 | -4/Factory | Identified Quantum Router 30342 | -4/Factory | Repaired Broken Centrium Wheel? 30359 | -4/Factory | Central database locked down 30467 | -4/Factory | Repaired Exp. Weapon Shielding 30525 | -4/Factory | Repaired Lrn. Proton Cannon 30600 | -4/Factory | Repaired Adv. Heavy Siege Treads 30630 | -4/Factory | Repaired Hcp. Storage Unit 30658 | -4/Factory | Repaired Hcp. Storage Unit 30817 | -4/Factory | Repaired Hvy. Missile Launcher 31006 | -4/Factory | Entered Upper Caves 31680 | -4/Upper Caves | Discovered new exit (range 16) 31738 | -4/Upper Caves | Identified exit to Upper Caves 31761 | -4/Upper Caves | Entered another Upper Caves area 31790 | -4/Upper Caves | Found Alien Artifact 31790 | -4/Upper Caves | Identified Core Expander 31790 | -4/Upper Caves | Installed Core Expander, added new Utility slot 32109 | -4/Upper Caves | Discovered new exit (range 9) 32119 | -4/Upper Caves | Identified exit to Zhirov 32201 | -4/Upper Caves | Entered Zhirov 32201 | -4/Zhirov | Discovered new exit (range 3) 32207 | -4/Zhirov | Identified exit to Proximity Caves 32227 | -4/Zhirov | Met Zhirov 32287 | -4/Zhirov | Zhirov requested help retrieving the SGEMP Prototype 32308 | -4/Zhirov | Found Alien Artifact 32308 | -4/Zhirov | Identified Integrated Reactor 32308 | -4/Zhirov | Installed Integrated Reactor, increased core energy generation (+2%) 32477 | -4/Zhirov | Found Alien Artifact 32535 | -4/Zhirov | Entered Proximity Caves 34025 | -3/Proximity Caves | Discovered exit to Research (range 15) 34066 | -3/Proximity Caves | Entered Research 34066 | -3/Research | Evolved 2 slots: Utility x2 34067 | -3/Research | Identified exit to Quarantine 34068 | -3/Research | Loaded intel: 131 machine locations 34097 | -3/Research | Found Hellfire Missile Launcher 34130 | -3/Research | Found Hellfire Missile Launcher 34303 | -3/Research | Repaired Broken Quantum Reactor 34471 | -3/Research | Local fabrication network quarantined 34526 | -3/Research | Fabricated Exp. Force Field (x1) 34593 | -3/Research | First assault squad dispatched 34921 | -3/Research | Intercept squad dispatched 34938 | -3/Research | Spotted Tracker 34957 | -3/Research | Destroyed Tracker 34962 | -3/Research | Spotted Combat Programmer 35021 | -3/Research | Discovered new exit (range 14) 35819 | -3/Research | Identified Transdimensional Reconstructor 35819 | -3/Research | Warped through subspace 36808 | -3/Research | Crushed by falling debris 36874 | -3/Research | Destroyed 12 combat bots 36900 | -3/Research | Spotted B-90 Cyclops 36928 | -3/Research | Destroyed B-90 Cyclops 36957 | -3/Research | Identified Ghost Barrier 36979 | -3/Research | Entered Quarantine 36980 | -3/Quarantine | Loaded intel: 91 machine locations 37058 | -3/Quarantine | Found Alien Artifact 37058 | -3/Quarantine | Identified Phase Redirector 37218 | -3/Quarantine | Found Alien Slashing Weapon 37220 | -3/Quarantine | Identified Sigix Broadsword 37302 | -3/Quarantine | Found Alien Impact Weapon 37308 | -3/Quarantine | Scanned by Researcher 37335 | -3/Quarantine | Discovered new exit (range 9) 37362 | -3/Quarantine | Found Alien Artifact 37368 | -3/Quarantine | Found Alien Artifact 37370 | -3/Quarantine | Found Alien Artifact 37373 | -3/Quarantine | Found Alien Artifact 37384 | -3/Quarantine | Found Alien Artifact 37560 | -3/Quarantine | Identified Hpw. Transdimensional Reconstructor (x4) 37560 | -3/Quarantine | Warped through subspace 37651 | -3/Quarantine | Intercept squad dispatched 37657 | -3/Quarantine | Spotted Tracker 37657 | -3/Quarantine | Spotted Tracker 37688 | -3/Quarantine | Destroyed Tracker 37689 | -3/Quarantine | Spotted Combat Programmer 37690 | -3/Quarantine | Spotted Combat Programmer 37706 | -3/Quarantine | Identified Core Stripper 37716 | -3/Quarantine | Destroyed Combat Programmer 37743 | -3/Quarantine | Destroyed Combat Programmer 37767 | -3/Quarantine | Found Exp. Target Analyzer 37785 | -3/Quarantine | Found EMDS 37849 | -3/Quarantine | Found Alien Artifact 38074 | -3/Quarantine | Warped through subspace 38082 | -3/Quarantine | Warped through subspace 38176 | -3/Quarantine | Found Alien Artifact 38176 | -3/Quarantine | Identified Stasis Generator 38278 | -3/Quarantine | Found Alien Artifact 38278 | -3/Quarantine | Identified Phase Armor 38545 | -3/Quarantine | Intercept squad dispatched 38554 | -3/Quarantine | Spotted Tracker 38554 | -3/Quarantine | Spotted Tracker 38592 | -3/Quarantine | Spotted Combat Programmer 38604 | -3/Quarantine | Spotted Combat Programmer 38610 | -3/Quarantine | Destroyed Combat Programmer 38627 | -3/Quarantine | Destroyed Combat Programmer 38695 | -3/Quarantine | Found EMDS 38740 | -3/Quarantine | Found Alien Artifact 38740 | -3/Quarantine | Identified Subatomic Replicator 38766 | -3/Quarantine | Identified Dimensional Node Initializer 38766 | -3/Quarantine | Identified Core Reset Matrix 38959 | -3/Quarantine | Core integrity fell below 50% 39132 | -3/Quarantine | Spotted Fortress 39142 | -3/Quarantine | Destroyed Fortress 39164 | -3/Quarantine | Found Exp. Force Field 39166 | -3/Quarantine | Found Thermal Barrier 39188 | -3/Quarantine | Found Centrium Heavy Armor Plating 39277 | -3/Quarantine | Discovered new exit (range 5) 39281 | -3/Quarantine | Identified exit to Section 7 39563 | -3/Quarantine | Entered Section 7 39564 | -3/Section 7 | Loaded intel: 157 machine locations 39665 | -3/Section 7 | Repaired Centrium Heavy Armor Plating? 39721 | -3/Section 7 | Found Alien Artifact 39721 | -3/Section 7 | Identified Integrated Dissipator 39721 | -3/Section 7 | Installed Integrated Dissipator, increased core heat dissipation (+2%) 39750 | -3/Section 7 | Spotted S7 Guard 39756 | -3/Section 7 | Destroyed S7 Guard 39813 | -3/Section 7 | First assault squad dispatched 39829 | -3/Section 7 | Found Alien Artifact 39963 | -3/Section 7 | Spotted S7 Guard 39983 | -3/Section 7 | Destroyed S7 Guard 40002 | -3/Section 7 | Discovered new exit (range 15) 40041 | -3/Section 7 | Found Alien Artifact 40109 | -3/Section 7 | Identified exit to Research 40111 | -3/Section 7 | Initialized slip node 40129 | -3/Section 7 | Found Alien Artifact 40129 | -3/Section 7 | Identified Integrity Redistributor 40129 | -3/Section 7 | Used Integrity Redistributor, redistributed integrity to core (+240) 40133 | -3/Section 7 | Intercept squad dispatched 40133 | -3/Section 7 | Spotted Tracker 40146 | -3/Section 7 | Destroyed Tracker 40152 | -3/Section 7 | Spotted S7 Guard 40166 | -3/Section 7 | Destroyed S7 Guard 40196 | -3/Section 7 | Lost 6 parts (2p4u) 40223 | -3/Section 7 | Found Alien Artifact 40408 | -3/Section 7 | Spotted S7 Guard 40432 | -3/Section 7 | Destroyed S7 Guard 40452 | -3/Section 7 | Found Prototype Protection 40454 | -3/Section 7 | Identified Hvy. Regenerative Plating 40468 | -3/Section 7 | Found Alien Artifact 40572 | -3/Section 7 | Spotted B-86 Titan 40714 | -3/Section 7 | Intercept squad dispatched 40714 | -3/Section 7 | Identified Core Regenerator 40714 | -3/Section 7 | Identified Integrated Heat Negator 40714 | -3/Section 7 | Identified Integrated Singularity Reactor 40714 | -3/Section 7 | Identified Core Membrane 40718 | -3/Section 7 | Installed Core Membrane, gained immunity to corruption 40720 | -3/Section 7 | Used Subatomic Replicator to replicate Integrated Singularity Reactor 40721 | -3/Section 7 | Spotted Tracker 40721 | -3/Section 7 | Spotted Tracker 40721 | -3/Section 7 | Installed Integrated Singularity Reactor, increased core energy generation (+2%) 40722 | -3/Section 7 | Spotted Tracker 40726 | -3/Section 7 | Installed Integrated Singularity Reactor, increased core energy generation (+2%) 40757 | -3/Section 7 | Spotted Combat Programmer 40757 | -3/Section 7 | Spotted Combat Programmer 40758 | -3/Section 7 | Spotted Combat Programmer 40774 | -3/Section 7 | Destroyed Combat Programmer 40780 | -3/Section 7 | Destroyed Tracker 40783 | -3/Section 7 | Installed Integrated Heat Negator, increased core heat dissipation (+2%) 40790 | -3/Section 7 | Destroyed Combat Programmer 40793 | -3/Section 7 | Used Core Regenerator, restored core integrity (+325) 40794 | -3/Section 7 | Warped through subspace 41047 | -3/Section 7 | Found EMDS 41129 | -3/Section 7 | Found Integrated Reactor 41129 | -3/Section 7 | Installed Integrated Reactor, increased core energy generation (+2%) 41339 | -3/Section 7 | Spotted Alpha 7 41354 | -3/Section 7 | Scanned by Researcher 41384 | -3/Section 7 | Destroyed Alpha 7 41527 | -3/Section 7 | Destroyed Combat Programmer 41542 | -3/Section 7 | Spotted Alpha 7 41558 | -3/Section 7 | Destroyed Alpha 7 41562 | -3/Section 7 | Found Prototype Ballistic Gun 41572 | -3/Section 7 | Identified Multirail 41577 | -3/Section 7 | Intercept squad dispatched 41579 | -3/Section 7 | Destroyed 9 combat bots 41580 | -3/Section 7 | Spotted Tracker 41580 | -3/Section 7 | Spotted Tracker 41581 | -3/Section 7 | Spotted Tracker 41582 | -3/Section 7 | Spotted Tracker 41584 | -3/Section 7 | Destroyed Tracker 41586 | -3/Section 7 | Destroyed Tracker 41586 | -3/Section 7 | Destroyed Tracker 41589 | -3/Section 7 | Destroyed Tracker 41597 | -3/Section 7 | Spotted Combat Programmer 41598 | -3/Section 7 | Spotted Combat Programmer 41599 | -3/Section 7 | Spotted Combat Programmer 41601 | -3/Section 7 | Spotted Combat Programmer 41629 | -3/Section 7 | Destroyed Combat Programmer 41632 | -3/Section 7 | Destroyed Combat Programmer 41635 | -3/Section 7 | Lost 4 parts (2p2u) 41644 | -3/Section 7 | Destroyed Combat Programmer 41652 | -3/Section 7 | Destroyed Combat Programmer 41676 | -3/Section 7 | Found Integrated Reactor 41677 | -3/Section 7 | Installed Integrated Reactor, increased core energy generation (+2%) 41683 | -3/Section 7 | Found EMDS 41738 | -3/Section 7 | Spotted B-99 Colossus 41760 | -3/Section 7 | Destroyed B-99 Colossus 41875 | -3/Section 7 | Found Alien Artifact 41875 | -3/Section 7 | Identified LRC Matter Compressor 41875 | -3/Section 7 | Installed LRC Matter Compressor, increased matter storage capacity (+125) 41888 | -3/Section 7 | Found Alien Artifact 41888 | -3/Section 7 | Identified LRC Boosters 41888 | -3/Section 7 | Installed LRC Boosters, increased mass support (+10) 42076 | -3/Section 7 | Intercept squad dispatched 42084 | -3/Section 7 | Spotted Tracker 42084 | -3/Section 7 | Spotted Tracker 42086 | -3/Section 7 | Spotted Tracker 42086 | -3/Section 7 | Spotted Tracker 42087 | -3/Section 7 | Spotted Tracker 42094 | -3/Section 7 | Destroyed Tracker 42094 | -3/Section 7 | Destroyed Tracker 42094 | -3/Section 7 | Destroyed Tracker 42095 | -3/Section 7 | Destroyed Tracker 42100 | -3/Section 7 | Destroyed Tracker 42117 | -3/Section 7 | Spotted Combat Programmer 42119 | -3/Section 7 | Spotted Combat Programmer 42119 | -3/Section 7 | Spotted Combat Programmer 42128 | -3/Section 7 | Spotted Combat Programmer 42131 | -3/Section 7 | Lost 7 parts (1n5u1w) 42136 | -3/Section 7 | Spotted Combat Programmer 42157 | -3/Section 7 | Destroyed Combat Programmer 42172 | -3/Section 7 | Destroyed Combat Programmer 42195 | -3/Section 7 | Destroyed Combat Programmer 42226 | -3/Section 7 | Core integrity fell below 20% 42226 | -3/Section 7 | Destroyed Combat Programmer 42252 | -3/Section 7 | Found Exp. Focal Shield 42300 | -3/Section 7 | Destroyed Combat Programmer 42321 | -3/Section 7 | Destroyed 9 combat bots 42346 | -3/Section 7 | Found Transdimensional Reconstructor 42464 | -3/Section 7 | Found Alien Energy Gun 42466 | -3/Section 7 | Found Alien Energy Gun 42468 | -3/Section 7 | Identified Sigix Quantum Sheargun (x2) 42491 | -3/Section 7 | Build established: Hacker-Mutant 42669 | -3/Section 7 | Entered Research 42669 | -2/Research | Evolved 2 slots: Propulsion x1, Weapon x1 42670 | -2/Research | Loaded intel: 98 machine locations 42769 | -2/Research | Local fabrication network quarantined 42821 | -2/Research | Fabricated Exp. Sensor Array? 42906 | -2/Research | Identified exit to Testing 42919 | -2/Research | First assault squad dispatched 43063 | -2/Research | Intercept squad dispatched 43066 | -2/Research | Entered Testing 43067 | -2/Testing | Loaded intel: 70 machine locations 43164 | -2/Testing | Found Quantum Capacitor 43168 | -2/Testing | Local fabrication network quarantined 43173 | -2/Testing | Found Prototype Energy Gun 43173 | -2/Testing | Identified Warp Gun 43209 | -2/Testing | Found Prototype Device 43209 | -2/Testing | Identified AEGIS Remote Shield 43218 | -2/Testing | Fabricated Exp. Force Field? 43316 | -2/Testing | First assault squad dispatched 43380 | -2/Testing | Found Prototype Energy Cannon 43380 | -2/Testing | Identified Hpw. Disruptor Cannon 43426 | -2/Testing | Intercept squad dispatched 43432 | -2/Testing | Spotted Tracker 43433 | -2/Testing | Spotted Tracker 43438 | -2/Testing | Found Point Singularity Launcher 43449 | -2/Testing | Destroyed Tracker 43460 | -2/Testing | Spotted Combat Programmer 43462 | -2/Testing | Spotted Combat Programmer 43477 | -2/Testing | Lost 9 parts (8u1w) 43493 | -2/Testing | Destroyed Combat Programmer 43497 | -2/Testing | Destroyed Combat Programmer 43513 | -2/Testing | Found EMDS 43538 | -2/Testing | Found EMDS 43695 | -2/Testing | Repaired Hcp. Storage Unit 43704 | -2/Testing | Repaired Hcp. Storage Unit 43727 | -2/Testing | Build established: Hauler-Mutant 43744 | -2/Testing | Discovered new exit (range 14) 43749 | -2/Testing | High security lockdown imminent 43783 | -2/Testing | Identified exit to Access 43797 | -2/Testing | Destroyed 7 combat bots 43829 | -2/Testing | High security lockdown engaged 43841 | -2/Testing | Found Prototype Energy Cannon 43841 | -2/Testing | Identified Cld. Nova Cannon 43882 | -2/Testing | Entered Access 43882 | -1/Access | Evolved 2 slots: Propulsion x1, Weapon x1 43883 | -1/Access | Loaded intel: 104 machine locations 43975 | -1/Access | Fabricated Exp. Force Field (x1) 44116 | -1/Access | Lost 3 parts (1n2u) 44132 | -1/Access | First assault squad dispatched 44177 | -1/Access | Local fabrication network quarantined 44182 | -1/Access | High security lockdown imminent 44192 | -1/Access | Garrison activated, responded to threat 44192 | -1/Access | Spotted Executioner 44213 | -1/Access | Destroyed 11 combat bots 44260 | -1/Access | Intercept squad dispatched 44262 | -1/Access | High security lockdown engaged 44265 | -1/Access | Spotted Tracker 44265 | -1/Access | Spotted Tracker 44279 | -1/Access | Destroyed Tracker 44279 | -1/Access | Spotted Combat Programmer 44281 | -1/Access | Destroyed Tracker 44285 | -1/Access | Destroyed Combat Programmer 44289 | -1/Access | Spotted Combat Programmer 44302 | -1/Access | Destroyed Combat Programmer 44303 | -1/Access | Warped through subspace 44314 | -1/Access | Lost 5 parts (1p2u2w) 44323 | -1/Access | Destroyed 10 combat bots 44427 | -1/Access | Discovered new exit (range 3) 44428 | -1/Access | Identified exit to Command 44428 | -1/Access | Entered Command 44429 | -1/Command | Loaded intel: 61 machine locations 44517 | -1/Command | Found Fusion Bomb Launcher 44570 | -1/Command | High security lockdown imminent 44622 | -1/Command | Spotted Combat Programmer 44650 | -1/Command | High security lockdown engaged 44667 | -1/Command | Met MAIN.C 44676 | -1/Command | 0b10 Conduit disabled 44689 | -1/Command | Destroyed MAIN.C Shell 44690 | -1/Command | MAIN.C activated Command garrisons 44721 | -1/Command | Spotted Combat Programmer 44726 | -1/Command | Spotted M Guard 44737 | -1/Command | Spotted M Guard 44754 | -1/Command | Core integrity fell below 50% 44759 | -1/Command | Core integrity fell below 20% 44761 | -1/Command | Destroyed by G-73 Enforcer with Phase Gun Last Messages --------------- 44757_ Core Membrane filtered system corruption (2). 44757_ Lrg. Storage Unit destroyed. 44757_ G-73 Enforcer destroyed. 44757_ Destroyed Hvy. Laser. 44757_ Exp. Energy Well destroyed. 44757_ Destroyed Exp. Energy Well. 44757_ Hcp. Storage Unit destroyed. 44757_ Destroyed Hcp. Storage Unit. 44757_ Destroyed Lgt. Antimatter Reactor. 44757_ Point Singularity Launcher destroyed. 44758_ Penetrated by EMDS Slug. 44759_ Knocked back. 44759_ Imp. Proton Missile Launcher destroyed. 44759_ M-36 Artificer fits Backup Power VII on L-61 Swordsman. 44760_ Penetrated by EMDS Slug. 44760_ Core Membrane filtered system corruption (2). 44760_ Penetrated by EMDS Slug. 44760_ Core Membrane filtered system corruption (1). 44760_ Exp. Target Analyzer destroyed. 44760_ Knocked back. Map ----- +----------------------------------------------------+ | ?????????????????????????????????????????????????? | | ?????????????????????????????????????????????????? | | ?????????????????????????????????????????????????? | | ?????????????????????????????????????????????????? | | ?????????????????????????????????????????????????? | | ?????????????????????????????????????????????????? | | ?????????????????????????????????????????????????? | | ????????????????????################?????????????? | | ??????????????""""""" """" #?????????????? | | ??????????????""??? "" ##????????????? | | ??????????????""""" "" "############## | | ??????????????""""""""""" %/" | | ??????????????" " "" "/% | | ??????????????"" """"" %x/% | | ????????????##"" """ "############### | | ????????????#" " """ #?????????????? | | ????????????#" #?????????????? | | ?????????????# " % ""#?????????????? | | ?????????????#"" """"" """"#?????????????? | | ???????????###"" ggg """"#?????????????? | | ???????????# ; gg/% """"#?????????????? | | ????????????## gg g " #?????????????? | | "????????????# gmYM ppY " #?????????????? | | "??????????""" lb gg " " #?????????????? | | ???????????""" bl! gi"""" #?????????????? | | "??????????""" @ " #?????????????? | | "????????????# " " #?????????????? | | ?????????????# " " """"""""#?????????????? | | ?????????????# "" " " ??????????????? | | ?????????????############;#########??????????????? | | ????????????????????????###??????????????????????? | | ?????????????????????????????????????????????????? | | ?????????????????????????????????????????????????? | | ?????????????????????????????????????????????????? | | ?????????????????????????????????????????????????? | | ?????????????????????????????????????????????????? | | ?????????????????????????????????????????????????? | | ?????????????????????????????????????????????????? | | ?????????????????????????????????????????????????? | | ?????????????????????????????????????????????????? | | ?????????????????????????????????????????????????? | | ??""?????????????????????????????????????????????? | | ??""??????"??????????????????????????????????????? | | ??"T?????""??????????????????????????????????????? | | ??""?????""??????????????????????????????????????? | | ??""?????""??????????????????????????????????????? | | ?????????""??????????????????????????????????????? | | ?????????T"??????????????????????????????????????? | | ?????????""??????????????????????????????????????? | | ?????????""??????????????????????????????????????? | +----------------------------------------------------+ Best States ------------- Heat Dissipation 112 Coolant Potential 100 Energy Generation 115 Energy Capacity 2600 Matter Stores 1925 Matter Capacity 1925 Sight Range 16 Robot Scan Range 30 Terrain Scan Density 10 Jamming Range 16 Power Amplification 60 Additional Mass Support 80 Armor Coverage 2850 Resistance: KI 40 Resistance: TH 50 Resistance: EM 90 Utility Shielding 90 Weapon Shielding 90 Weapon Cycling 25 Phase Shifting 20 Evasion (%) 71 Targeting Accuracy 20 Target Analysis 12 Armor Integrity Analysis 66 Recoil Reduction 2 Energy Filtering 30 Particle Charging 25 Offensive Hacking 25 Defensive Hacking 25 Item Schematics ----------------- Arm. Wheel | -7/Factory | Scanalyzed Imp. System Backup Module | -6/Factory | Hacked Centrium Wheel | -6/Factory | Hacked Imp. Heavy Treads | -6/Factory | Hacked Exp. Signal Interpreter | -6/Factory | Scanalyzed Med. Reactive Plating | -6/Factory | Scanalyzed Hvy. Reactive Plating | -6/Factory | Hacked Imp. Armor Integrity Analyzer | -6/Factory | Hacked Lgt. Regenerative Plating | -6/Data Miner | Free Combat Drone Bay | -6/Data Miner | Free Cmb. Gravmag System | -6/Data Miner | Free Exp. Cesium-ion Thruster | -6/Data Miner | Free Exp. ECM Suite | -6/Data Miner | Free Exp. Utility Shielding | -5/Factory | Hacked Exp. Terrain Scanner | -5/Factory | Hacked Adv. Force Field | -5/Extension | Hacked Exp. Propulsion Shielding | -4/Factory | Hacked Assault Drone Bay | -4/Zhirov | Free Exp. Heat Sink | -4/Zhirov | Free Exp. Optical Array | -4/Zhirov | Free Imp. Arc Thrower | -4/Zhirov | Free Exp. Force Field | -3/Research | Downloaded Exp. Sensor Array | -3/Quarantine | Hacked Robot Schematics ------------------ P-60 Hacker | -6/Factory | Hacked S-27 Virus | -6/Data Miner | Free P-70 Sage | -6/Data Miner | Free G-50 Soldier | -6/Data Miner | Free I-36 Angel | -6/Data Miner | Free Fabricated ------------ H-55 Commando | x2 | -7/Factory | Preloaded Imp. System Backup Module | x2 | -6/Factory Centrium Wheel | x2 | -6/Factory Centrium Wheel | x2 | -6/Factory Hvy. Reactive Plating | x1 | -6/Factory Centrium Wheel | x2 | -5/Factory Exp. Signal Interpreter | x1 | -4/Factory Exp. Force Field | x1 | -3/Research | Preloaded Exp. Sensor Array | x1 | -2/Research Exp. Force Field | x1 | -2/Testing Exp. Force Field | x1 | -1/Access Alien Tech Used ----------------- Core Expander Integrated Reactor Transdimensional Reconstructor Phase Redirector Sigix Broadsword High-powered Transdimensional Reconstructor Core Stripper Stasis Generator Phase Armor Subatomic Replicator Integrated Dissipator Dimensional Node Initializer Integrity Redistributor Core Membrane Integrated Singularity Reactor Integrated Heat Negator Core Regenerator LRC Matter Compressor LRC Boosters Sigix Quantum Sheargun Achievements -------------- None Challenges ------------ None Game ------ Seed PulseSmallKatana Manual? 0 Play Time 13:12:07 Cumulative 1051.3 hours Start 2020.04.28 @ 23:54:42 End 2020.05.01 @ 19:11:31 Sessions 11 Manual Loads 0 Difficulty Rogue Special Mode None Game No. 392 Rogue 392 Adventurer 0 Explorer 0 Win Type - Total 25 Types 13/1/7/0/0/0/4 Lore% 96 Gallery% 98 Achievement% 83 Wizard Run 0 Options --------- ASCII 0 Keyboard 0 Movement Vi Keybinds 0 Fullscreen 0 Font 12/Crisp Map View 76x50 Tactical HUD 1 Map Filters NONE Filters NONE Steam 1 RUN: 2b6966c7-3130-4305-b022-759a1e513b4a